Workbook

Sheet PORTADA

Sheet INDICE

Sheet BASE (hidden)
A1: FECHA | B1: DIAS DEL MES | C1: MES | D1: AÑO | E1: SECTOR | F1: CATEGORÍA DE ALOJAMIENTO DEL ESTABLECIMIENTO | G1: TIPO DE ALOJAMIENTO | H1: TOTAL DE HABITACIONES | I1: VENTAS POR ALOJAMIENTO DURANTE EL MES DE LA ENCUESTA | J1: VENTAS POR ALOJAMIENTO DURANTE EL MES (MILES) | K1: TOTAL HABITACIONES VENDIDAS | L1: LLEGADAS EN EL MES RESIDENTES | M1: LLEGADAS EN EL MES NO RESIDENTES | N1: TOTAL LLEGADAS | O1: PERNOCTACIONES RESIDENTES | P1: PERNOCTACIONES NO RESIDENTES | Q1: TOTAL PERNOCTACIONES | R1: EMPLEOS
A2: 2019-12-01 | B2: =DAY(EOMONTH(Base[[#This Row],[FECHA]],0)) -> 31 | C2: =+PROPER(TEXT(Base[[#This Row],[FECHA]],"MMMM")) -> Diciembre | D2: =+YEAR(Base[[#This Row],[FECHA]]) -> 2019 | E2: La Mariscal | F2: 3 estrellas | G2: Hotel | H2: 40 | I2: 12000 | J2: =Base[[#This Row],[VENTAS POR ALOJAMIENTO DURANTE EL MES DE LA ENCUESTA]]/1000 -> 12 | K2: 395 | L2: 337 | M2: 21 | N2: 358 | O2: 372 | P2: 32 | Q2: 404 | R2: 8
A3: 2019-12-01 | B3: =DAY(EOMONTH(Base[[#This Row],[FECHA]],0)) -> 31 | C3: =+PROPER(TEXT(Base[[#This Row],[FECHA]],"MMMM")) -> Diciembre | D3: =+YEAR(Base[[#This Row],[FECHA]]) -> 2019 | E3: Eugenio Espejo | F3: 3 estrellas | G3: Hotel | H3: 12 | I3: 4600.5 | J3: =Base[[#This Row],[VENTAS POR ALOJAMIENTO DURANTE EL MES DE LA ENCUESTA]]/1000 -> 4.6005 | K3: 141 | L3: 195 | M3: 141 | N3: 336 | O3: 195 | P3: 141 | Q3: 336 | R3: 6
A4: 2019-12-01 | B4: =DAY(EOMONTH(Base[[#This Row],[FECHA]],0)) -> 31 | C4: =+PROPER(TEXT(Base[[#This Row],[FECHA]],"MMMM")) -> Diciembre | D4: =+YEAR(Base[[#This Row],[FECHA]]) -> 2019 | E4: Eugenio Espejo | F4: 3 estrellas | G4: Hotel | H4: 13 | J4: =Base[[#This Row],[VENTAS POR ALOJAMIENTO DURANTE EL MES DE LA ENCUESTA]]/1000 -> 0 | K4: 13 | L4: 3 | M4: 14 | N4: 17 | O4: 14 | P4: 35 | Q4: 49 | R4: 0
A5: 2019-12-01 | B5: =DAY(EOMONTH(Base[[#This Row],[FECHA]],0)) -> 31 | C5: =+PROPER(TEXT(Base[[#This Row],[FECHA]],"MMMM")) -> Diciembre | D5: =+YEAR(Base[[#This Row],[FECHA]]) -> 2019 | E5: La Delicia | F5: 4 estrellas | G5: Lodge | H5: 14 | I5: 39000 | J5: =Base[[#This Row],[VENTAS POR ALOJAMIENTO DURANTE EL MES DE LA ENCUESTA]]/1000 -> 39 | K5: 176 | L5: 48 | M5: 306 | N5: 354 | O5: 48 | P5: 306 | Q5: 354 | R5: 0
A6: 2019-12-01 | B6: =DAY(EOMONTH(Base[[#This Row],[FECHA]],0)) -> 31 | C6: =+PROPER(TEXT(Base[[#This Row],[FECHA]],"MMMM")) -> Diciembre | D6: =+YEAR(Base[[#This Row],[FECHA]]) -> 2019 | E6: La Mariscal | F6: 4 estrellas | G6: Hotel | H6: 46 | I6: 34515 | J6: =Base[[#This Row],[VENTAS POR ALOJAMIENTO DURANTE EL MES DE LA ENCUESTA]]/1000 -> 34.515 | K6: 615 | L6: 319 | M6: 615 | N6: 934 | O6: 319 | P6: 615 | Q6: 934 | R6: 19
A7: 2019-12-01 | B7: =DAY(EOMONTH(Base[[#This Row],[FECHA]],0)) -> 31 | C7: =+PROPER(TEXT(Base[[#This Row],[FECHA]],"MMMM")) -> Diciembre | D7: =+YEAR(Base[[#This Row],[FECHA]]) -> 2019 | E7: La Mariscal | F7: 3 estrellas | G7: Hotel | H7: 8 | I7: 1325 | J7: =Base[[#This Row],[VENTAS POR ALOJAMIENTO DURANTE EL MES DE LA ENCUESTA]]/1000 -> 1.325 | K7: 8 | L7: 7 | M7: 15 | N7: 22 | O7: 14 | P7: 30 | Q7: 44 | R7: 3
A8: 2019-12-01 | B8: =DAY(EOMONTH(Base[[#This Row],[FECHA]],0)) -> 31 | C8: =+PROPER(TEXT(Base[[#This Row],[FECHA]],"MMMM")) -> Diciembre | D8: =+YEAR(Base[[#This Row],[FECHA]]) -> 2019 | E8: Manuela Sáenz | F8: 4 estrellas | G8: Hotel | H8: 25 | J8: =Base[[#This Row],[VENTAS POR ALOJAMIENTO DURANTE EL MES DE LA ENCUESTA]]/1000 -> 0 | K8: 151 | L8: 12 | M8: 147 | N8: 159 | O8: 12 | P8: 293 | Q8: 305 | R8: 15
A9: 2019-12-01 | B9: =DAY(EOMONTH(Base[[#This Row],[FECHA]],0)) -> 31 | C9: =+PROPER(TEXT(Base[[#This Row],[FECHA]],"MMMM")) -> Diciembre | D9: =+YEAR(Base[[#This Row],[FECHA]]) -> 2019 | E9: Tumbaco | F9: 5 estrellas | G9: Hostería | H9: 7 | I9: 4078 | J9: =Base[[#This Row],[VENTAS POR ALOJAMIENTO DURANTE EL MES DE LA ENCUESTA]]/1000 -> 4.078 | K9: 40 | L9: 18 | M9: 62 | N9: 80 | O9: 18 | P9: 62 | Q9: 80 | R9: 7
A10: 2019-12-01 | B10: =DAY(EOMONTH(Base[[#This Row],[FECHA]],0)) -> 31 | C10: =+PROPER(TEXT(Base[[#This Row],[FECHA]],"MMMM")) -> Diciembre | D10: =+YEAR(Base[[#This Row],[FECHA]]) -> 2019 | E10: Tumbaco | F10: 5 estrellas | G10: Hacienda Turística | H10: 11 | I10: 3790 | J10: =Base[[#This Row],[VENTAS POR ALOJAMIENTO DURANTE EL MES DE LA ENCUESTA]]/1000 -> 3.79 | K10: 32 | L10: 40 | M10: 12 | N10: 52 | O10: 40 | P10: 12 | Q10: 52 | R10: 4
A11: 2019-12-01 | B11: =DAY(EOMONTH(Base[[#This Row],[FECHA]],0)) -> 31 | C11: =+PROPER(TEXT(Base[[#This Row],[FECHA]],"MMMM")) -> Diciembre | D11: =+YEAR(Base[[#This Row],[FECHA]]) -> 2019 | E11: La Mariscal | F11: 3 estrellas | G11: Hotel | H11: 10 | I11: 5691.75 | J11: =Base[[#This Row],[VENTAS POR ALOJAMIENTO DURANTE EL MES DE LA ENCUESTA]]/1000 -> 5.69175 | K11: 114 | M11: 21 | N11: 21 | P11: 106 | Q11: 106 | R11: 2
A12: 2019-12-01 | B12: =DAY(EOMONTH(Base[[#This Row],[FECHA]],0)) -> 31 | C12: =+PROPER(TEXT(Base[[#This Row],[FECHA]],"MMMM")) -> Diciembre | D12: =+YEAR(Base[[#This Row],[FECHA]]) -> 2019 | E12: La Mariscal | F12: 3 estrellas | G12: Hotel | H12: 20 | I12: 6330.09 | J12: =Base[[#This Row],[VENTAS POR ALOJAMIENTO DURANTE EL MES DE LA ENCUESTA]]/1000 -> 6.33009 | K12: 215 | L12: 16 | M12: 207 | N12: 223 | O12: 16 | P12: 367 | Q12: 383 | R12: 9
A13: 2019-12-01 | B13: =DAY(EOMONTH(Base[[#This Row],[FECHA]],0)) -> 31 | C13: =+PROPER(TEXT(Base[[#This Row],[FECHA]],"MMMM")) -> Diciembre | D13: =+YEAR(Base[[#This Row],[FECHA]]) -> 2019 | E13: Manuela Sáenz | F13: 4 estrellas | G13: Hotel | H13: 18 | I13: 3657 | J13: =Base[[#This Row],[VENTAS POR ALOJAMIENTO DURANTE EL MES DE LA ENCUESTA]]/1000 -> 3.657 | K13: 42 | M13: 15 | N13: 15 | P13: 15 | Q13: 15 | R13: 6
A14: 2019-12-01 | B14: =DAY(EOMONTH(Base[[#This Row],[FECHA]],0)) -> 31 | C14: =+PROPER(TEXT(Base[[#This Row],[FECHA]],"MMMM")) -> Diciembre | D14: =+YEAR(Base[[#This Row],[FECHA]]) -> 2019 | E14: Eugenio Espejo | F14: 4 estrellas | G14: Hotel | H14: 23 | I14: 3600 | J14: =Base[[#This Row],[VENTAS POR ALOJAMIENTO DURANTE EL MES DE LA ENCUESTA]]/1000 -> 3.6 | K14: 45 | L14: 22 | M14: 28 | N14: 50 | O14: 22 | P14: 28 | Q14: 50 | R14: 4
A15: 2019-12-01 | B15: =DAY(EOMONTH(Base[[#This Row],[FECHA]],0)) -> 31 | C15: =+PROPER(TEXT(Base[[#This Row],[FECHA]],"MMMM")) -> Diciembre | D15: =+YEAR(Base[[#This Row],[FECHA]]) -> 2019 | E15: Tumbaco | F15: 5 estrellas | G15: Hacienda Turística | H15: 7 | I15: 2589.5 | J15: =Base[[#This Row],[VENTAS POR ALOJAMIENTO DURANTE EL MES DE LA ENCUESTA]]/1000 -> 2.5895 | K15: 22 | L15: 29 | M15: 19 | N15: 48 | O15: 29 | P15: 19 | Q15: 48 | R15: 9
A16: 2019-12-01 | B16: =DAY(EOMONTH(Base[[#This Row],[FECHA]],0)) -> 31 | C16: =+PROPER(TEXT(Base[[#This Row],[FECHA]],"MMMM")) -> Diciembre | D16: =+YEAR(Base[[#This Row],[FECHA]]) -> 2019 | E16: La Mariscal | F16: 5 estrellas | G16: Hotel | H16: 255 | I16: 373271 | J16: =Base[[#This Row],[VENTAS POR ALOJAMIENTO DURANTE EL MES DE LA ENCUESTA]]/1000 -> 373.271 | K16: 4053 | L16: 359 | M16: 2034 | N16: 2393 | O16: 608 | P16: 3445 | Q16: 4053 | R16: 453
A17: 2019-12-01 | B17: =DAY(EOMONTH(Base[[#This Row],[FECHA]],0)) -> 31 | C17: =+PROPER(TEXT(Base[[#This Row],[FECHA]],"MMMM")) -> Diciembre | D17: =+YEAR(Base[[#This Row],[FECHA]]) -> 2019 | E17: La Mariscal | F17: 4 estrellas | G17: Hotel | H17: 141 | I17: 152796.53 | J17: =Base[[#This Row],[VENTAS POR ALOJAMIENTO DURANTE EL MES DE LA ENCUESTA]]/1000 -> 152.79653 | K17: 1960 | N17: 0 | O17: 665 | P17: 1305 | Q17: 1970 | R17: 44
A18: 2019-12-01 | B18: =DAY(EOMONTH(Base[[#This Row],[FECHA]],0)) -> 31 | C18: =+PROPER(TEXT(Base[[#This Row],[FECHA]],"MMMM")) -> Diciembre | D18: =+YEAR(Base[[#This Row],[FECHA]]) -> 2019 | E18: La Delicia | F18: 3 estrellas | G18: Hostal | H18: 7 | I18: 900 | J18: =Base[[#This Row],[VENTAS POR ALOJAMIENTO DURANTE EL MES DE LA ENCUESTA]]/1000 -> 0.9 | K18: 6 | L18: 12 | N18: 12 | O18: 15 | Q18: 15 | R18: 3
A19: 2019-12-01 | B19: =DAY(EOMONTH(Base[[#This Row],[FECHA]],0)) -> 31 | C19: =+PROPER(TEXT(Base[[#This Row],[FECHA]],"MMMM")) -> Diciembre | D19: =+YEAR(Base[[#This Row],[FECHA]]) -> 2019 | E19: Manuela Sáenz | F19: 3 estrellas | G19: Hostal | H19: 6 | I19: 4000 | J19: =Base[[#This Row],[VENTAS POR ALOJAMIENTO DURANTE EL MES DE LA ENCUESTA]]/1000 -> 4 | K19: 12 | M19: 40 | N19: 40 | P19: 40 | Q19: 40 | R19: 6
A20: 2019-12-01 | B20: =DAY(EOMONTH(Base[[#This Row],[FECHA]],0)) -> 31 | C20: =+PROPER(TEXT(Base[[#This Row],[FECHA]],"MMMM")) -> Diciembre | D20: =+YEAR(Base[[#This Row],[FECHA]]) -> 2019 | E20: La Mariscal | F20: 3 estrellas | G20: Hostal | H20: 14 | J20: =Base[[#This Row],[VENTAS POR ALOJAMIENTO DURANTE EL MES DE LA ENCUESTA]]/1000 -> 0 | K20: 14 | L20: 12 | N20: 12 | O20: 19 | Q20: 19 | R20: 1
A21: 2019-12-01 | B21: =DAY(EOMONTH(Base[[#This Row],[FECHA]],0)) -> 31 | C21: =+PROPER(TEXT(Base[[#This Row],[FECHA]],"MMMM")) -> Diciembre | D21: =+YEAR(Base[[#This Row],[FECHA]]) -> 2019 | E21: La Delicia | F21: 3 estrellas | G21: Hostería | H21: 14 | I21: 1200 | J21: =Base[[#This Row],[VENTAS POR ALOJAMIENTO DURANTE EL MES DE LA ENCUESTA]]/1000 -> 1.2 | K21: 40 | L21: 57 | M21: 3 | N21: 60 | O21: 57 | P21: 3 | Q21: 60 | R21: 14
A22: 2019-12-01 | B22: =DAY(EOMONTH(Base[[#This Row],[FECHA]],0)) -> 31 | C22: =+PROPER(TEXT(Base[[#This Row],[FECHA]],"MMMM")) -> Diciembre | D22: =+YEAR(Base[[#This Row],[FECHA]]) -> 2019 | E22: Los Chillos | F22: 3 estrellas | G22: Hostería | H22: 13 | I22: 500 | J22: =Base[[#This Row],[VENTAS POR ALOJAMIENTO DURANTE EL MES DE LA ENCUESTA]]/1000 -> 0.5 | K22: 14 | L22: 30 | N22: 30 | O22: 30 | Q22: 30 | R22: 7
A23: 2019-12-01 | B23: =DAY(EOMONTH(Base[[#This Row],[FECHA]],0)) -> 31 | C23: =+PROPER(TEXT(Base[[#This Row],[FECHA]],"MMMM")) -> Diciembre | D23: =+YEAR(Base[[#This Row],[FECHA]]) -> 2019 | E23: Eugenio Espejo | F23: 3 estrellas | G23: Hostería | H23: 10 | I23: 98.4 | J23: =Base[[#This Row],[VENTAS POR ALOJAMIENTO DURANTE EL MES DE LA ENCUESTA]]/1000 -> 0.0984 | K23: 20 | L23: 20 | N23: 20 | O23: 20 | Q23: 20 | R23: 6
A24: 2019-12-01 | B24: =DAY(EOMONTH(Base[[#This Row],[FECHA]],0)) -> 31 | C24: =+PROPER(TEXT(Base[[#This Row],[FECHA]],"MMMM")) -> Diciembre | D24: =+YEAR(Base[[#This Row],[FECHA]]) -> 2019 | E24: Los Chillos | F24: 3 estrellas | G24: Hostería | J24: =Base[[#This Row],[VENTAS POR ALOJAMIENTO DURANTE EL MES DE LA ENCUESTA]]/1000 -> 0 | K24: 0 | N24: 0 | Q24: 0 | R24: 0
A25: 2019-12-01 | B25: =DAY(EOMONTH(Base[[#This Row],[FECHA]],0)) -> 31 | C25: =+PROPER(TEXT(Base[[#This Row],[FECHA]],"MMMM")) -> Diciembre | D25: =+YEAR(Base[[#This Row],[FECHA]]) -> 2019 | E25: Los Chillos | F25: 4 estrellas | G25: Hostería | H25: 12 | I25: 507.28 | J25: =Base[[#This Row],[VENTAS POR ALOJAMIENTO DURANTE EL MES DE LA ENCUESTA]]/1000 -> 0.50728 | K25: 128 | N25: 0 | Q25: 0 | R25: 7
A26: 2019-12-01 | B26: =DAY(EOMONTH(Base[[#This Row],[FECHA]],0)) -> 31 | C26: =+PROPER(TEXT(Base[[#This Row],[FECHA]],"MMMM")) -> Diciembre | D26: =+YEAR(Base[[#This Row],[FECHA]]) -> 2019 | E26: Tumbaco | F26: 3 estrellas | G26: Hostería | H26: 6 | I26: 1300 | J26: =Base[[#This Row],[VENTAS POR ALOJAMIENTO DURANTE EL MES DE LA ENCUESTA]]/1000 -> 1.3 | K26: 27 | L26: 50 | M26: 6 | N26: 56 | O26: 50 | P26: 6 | Q26: 56 | R26: 6
A27: 2019-12-01 | B27: =DAY(EOMONTH(Base[[#This Row],[FECHA]],0)) -> 31 | C27: =+PROPER(TEXT(Base[[#This Row],[FECHA]],"MMMM")) -> Diciembre | D27: =+YEAR(Base[[#This Row],[FECHA]]) -> 2019 | E27: La Mariscal | F27: 3 estrellas | G27: Hotel | H27: 40 | I27: 17989.48 | J27: =Base[[#This Row],[VENTAS POR ALOJAMIENTO DURANTE EL MES DE LA ENCUESTA]]/1000 -> 17.98948 | K27: 331 | L27: 116 | M27: 214 | N27: 330 | O27: 357 | P27: 214 | Q27: 571 | R27: 29
A28: 2019-12-01 | B28: =DAY(EOMONTH(Base[[#This Row],[FECHA]],0)) -> 31 | C28: =+PROPER(TEXT(Base[[#This Row],[FECHA]],"MMMM")) -> Diciembre | D28: =+YEAR(Base[[#This Row],[FECHA]]) -> 2019 | E28: La Mariscal | F28: 3 estrellas | G28: Hotel | H28: 15 | I28: 2766 | J28: =Base[[#This Row],[VENTAS POR ALOJAMIENTO DURANTE EL MES DE LA ENCUESTA]]/1000 -> 2.766 | K28: 69 | M28: 25 | N28: 25 | P28: 25 | Q28: 25 | R28: 5
A29: 2019-12-01 | B29: =DAY(EOMONTH(Base[[#This Row],[FECHA]],0)) -> 31 | C29: =+PROPER(TEXT(Base[[#This Row],[FECHA]],"MMMM")) -> Diciembre | D29: =+YEAR(Base[[#This Row],[FECHA]]) -> 2019 | E29: Manuela Sáenz | F29: 4 estrellas | G29: Hotel | H29: 49 | I29: 85264.01 | J29: =Base[[#This Row],[VENTAS POR ALOJAMIENTO DURANTE EL MES DE LA ENCUESTA]]/1000 -> 85.26401 | K29: 390 | L29: 592 | M29: 231 | N29: 823 | O29: 592 | P29: 231 | Q29: 823 | R29: 44
A30: 2019-12-01 | B30: =DAY(EOMONTH(Base[[#This Row],[FECHA]],0)) -> 31 | C30: =+PROPER(TEXT(Base[[#This Row],[FECHA]],"MMMM")) -> Diciembre | D30: =+YEAR(Base[[#This Row],[FECHA]]) -> 2019 | E30: La Mariscal | F30: 3 estrellas | G30: Hotel | H30: 36 | I30: 5582.82 | J30: =Base[[#This Row],[VENTAS POR ALOJAMIENTO DURANTE EL MES DE LA ENCUESTA]]/1000 -> 5.58282 | K30: 171 | L30: 153 | N30: 153 | O30: 153 | Q30: 153 | R30: 9
A31: 2019-12-01 | B31: =DAY(EOMONTH(Base[[#This Row],[FECHA]],0)) -> 31 | C31: =+PROPER(TEXT(Base[[#This Row],[FECHA]],"MMMM")) -> Diciembre | D31: =+YEAR(Base[[#This Row],[FECHA]]) -> 2019 | E31: Manuela Sáenz | F31: 3 estrellas | G31: Hotel | H31: 24 | I31: 17000 | J31: =Base[[#This Row],[VENTAS POR ALOJAMIENTO DURANTE EL MES DE LA ENCUESTA]]/1000 -> 17 | K31: 198 | L31: 35 | M31: 163 | N31: 198 | O31: 35 | P31: 163 | Q31: 198 | R31: 10
A32: 2019-12-01 | B32: =DAY(EOMONTH(Base[[#This Row],[FECHA]],0)) -> 31 | C32: =+PROPER(TEXT(Base[[#This Row],[FECHA]],"MMMM")) -> Diciembre | D32: =+YEAR(Base[[#This Row],[FECHA]]) -> 2019 | E32: Manuela Sáenz | F32: 3 estrellas | G32: Hotel | H32: 10 | I32: 19890.45 | J32: =Base[[#This Row],[VENTAS POR ALOJAMIENTO DURANTE EL MES DE LA ENCUESTA]]/1000 -> 19.89045 | K32: 136 | N32: 0 | Q32: 0 | R32: 6
A33: 2019-12-01 | B33: =DAY(EOMONTH(Base[[#This Row],[FECHA]],0)) -> 31 | C33: =+PROPER(TEXT(Base[[#This Row],[FECHA]],"MMMM")) -> Diciembre | D33: =+YEAR(Base[[#This Row],[FECHA]]) -> 2019 | E33: Eugenio Espejo | F33: 4 estrellas | G33: Hotel | H33: 152 | I33: 167518.81 | J33: =Base[[#This Row],[VENTAS POR ALOJAMIENTO DURANTE EL MES DE LA ENCUESTA]]/1000 -> 167.51881 | K33: 2657 | L33: 1456 | M33: 644 | N33: 2100 | O33: 1456 | P33: 644 | Q33: 2100 | R33: 67
A34: 2019-12-01 | B34: =DAY(EOMONTH(Base[[#This Row],[FECHA]],0)) -> 31 | C34: =+PROPER(TEXT(Base[[#This Row],[FECHA]],"MMMM")) -> Diciembre | D34: =+YEAR(Base[[#This Row],[FECHA]]) -> 2019 | E34: Eugenio Espejo | F34: 3 estrellas | G34: Hotel | H34: 14 | I34: 2336.78 | J34: =Base[[#This Row],[VENTAS POR ALOJAMIENTO DURANTE EL MES DE LA ENCUESTA]]/1000 -> 2.33678 | K34: 60 | L34: 64 | M34: 16 | N34: 80 | O34: 64 | P34: 16 | Q34: 80 | R34: 2
A35: 2019-12-01 | B35: =DAY(EOMONTH(Base[[#This Row],[FECHA]],0)) -> 31 | C35: =+PROPER(TEXT(Base[[#This Row],[FECHA]],"MMMM")) -> Diciembre | D35: =+YEAR(Base[[#This Row],[FECHA]]) -> 2019 | E35: Eugenio Espejo | F35: 3 estrellas | G35: Hotel | H35: 40 | I35: 3240 | J35: =Base[[#This Row],[VENTAS POR ALOJAMIENTO DURANTE EL MES DE LA ENCUESTA]]/1000 -> 3.24 | K35: 180 | L35: 90 | M35: 90 | N35: 180 | O35: 90 | P35: 90 | Q35: 180 | R35: 6
A36: 2019-12-01 | B36: =DAY(EOMONTH(Base[[#This Row],[FECHA]],0)) -> 31 | C36: =+PROPER(TEXT(Base[[#This Row],[FECHA]],"MMMM")) -> Diciembre | D36: =+YEAR(Base[[#This Row],[FECHA]]) -> 2019 | E36: Manuela Sáenz | F36: 5 estrellas | G36: Hotel | H36: 15 | I36: 53961 | J36: =Base[[#This Row],[VENTAS POR ALOJAMIENTO DURANTE EL MES DE LA ENCUESTA]]/1000 -> 53.961 | K36: 268 | L36: 10 | M36: 526 | N36: 536 | O36: 10 | P36: 526 | Q36: 536 | R36: 8
A37: 2019-12-01 | B37: =DAY(EOMONTH(Base[[#This Row],[FECHA]],0)) -> 31 | C37: =+PROPER(TEXT(Base[[#This Row],[FECHA]],"MMMM")) -> Diciembre | D37: =+YEAR(Base[[#This Row],[FECHA]]) -> 2019 | E37: La Mariscal | F37: 4 estrellas | G37: Hotel | I37: 42560.01 | J37: =Base[[#This Row],[VENTAS POR ALOJAMIENTO DURANTE EL MES DE LA ENCUESTA]]/1000 -> 42.56001 | K37: 896 | N37: 0 | Q37: 0 | R37: 81
A38: 2019-12-01 | B38: =DAY(EOMONTH(Base[[#This Row],[FECHA]],0)) -> 31 | C38: =+PROPER(TEXT(Base[[#This Row],[FECHA]],"MMMM")) -> Diciembre | D38: =+YEAR(Base[[#This Row],[FECHA]]) -> 2019 | E38: Manuela Sáenz | F38: 4 estrellas | G38: Hotel | H38: 80 | I38: 15273 | J38: =Base[[#This Row],[VENTAS POR ALOJAMIENTO DURANTE EL MES DE LA ENCUESTA]]/1000 -> 15.273 | K38: 240 | N38: 0 | O38: 363 | P38: 157 | Q38: 520 | R38: 35
A39: 2019-12-01 | B39: =DAY(EOMONTH(Base[[#This Row],[FECHA]],0)) -> 31 | C39: =+PROPER(TEXT(Base[[#This Row],[FECHA]],"MMMM")) -> Diciembre | D39: =+YEAR(Base[[#This Row],[FECHA]]) -> 2019 | E39: Eugenio Espejo | F39: 3 estrellas | G39: Hotel | H39: 13 | I39: 8358.13 | J39: =Base[[#This Row],[VENTAS POR ALOJAMIENTO DURANTE EL MES DE LA ENCUESTA]]/1000 -> 8.35813 | K39: 185 | L39: 134 | M39: 5 | N39: 139 | O39: 134 | P39: 5 | Q39: 139 | R39: 0
A40: 2019-12-01 | B40: =DAY(EOMONTH(Base[[#This Row],[FECHA]],0)) -> 31 | C40: =+PROPER(TEXT(Base[[#This Row],[FECHA]],"MMMM")) -> Diciembre | D40: =+YEAR(Base[[#This Row],[FECHA]]) -> 2019 | E40: Tumbaco | F40: 3 estrellas | G40: Hostal | H40: 9 | I40: 433.85 | J40: =Base[[#This Row],[VENTAS POR ALOJAMIENTO DURANTE EL MES DE LA ENCUESTA]]/1000 -> 0.43385 | K40: 15 | L40: 11 | M40: 4 | N40: 15 | O40: 11 | P40: 4 | Q40: 15 | R40: 2
A41: 2019-12-01 | B41: =DAY(EOMONTH(Base[[#This Row],[FECHA]],0)) -> 31 | C41: =+PROPER(TEXT(Base[[#This Row],[FECHA]],"MMMM")) -> Diciembre | D41: =+YEAR(Base[[#This Row],[FECHA]]) -> 2019 | E41: Eloy Alfaro | F41: 3 estrellas | G41: Hotel | H41: 40 | I41: 2500 | J41: =Base[[#This Row],[VENTAS POR ALOJAMIENTO DURANTE EL MES DE LA ENCUESTA]]/1000 -> 2.5 | K41: 40 | L41: 6 | N41: 6 | O41: 6 | Q41: 6 | R41: 13
A42: 2019-12-01 | B42: =DAY(EOMONTH(Base[[#This Row],[FECHA]],0)) -> 31 | C42: =+PROPER(TEXT(Base[[#This Row],[FECHA]],"MMMM")) -> Diciembre | D42: =+YEAR(Base[[#This Row],[FECHA]]) -> 2019 | E42: Eugenio Espejo | F42: 3 estrellas | G42: Hotel | H42: 37 | I42: 2610.68 | J42: =Base[[#This Row],[VENTAS POR ALOJAMIENTO DURANTE EL MES DE LA ENCUESTA]]/1000 -> 2.61068 | K42: 191 | L42: 3 | N42: 3 | O42: 3 | Q42: 3 | R42: 4
A43: 2019-12-01 | B43: =DAY(EOMONTH(Base[[#This Row],[FECHA]],0)) -> 31 | C43: =+PROPER(TEXT(Base[[#This Row],[FECHA]],"MMMM")) -> Diciembre | D43: =+YEAR(Base[[#This Row],[FECHA]]) -> 2019 | E43: Los Chillos | F43: 3 estrellas | G43: Hostería | H43: 10 | I43: 400 | J43: =Base[[#This Row],[VENTAS POR ALOJAMIENTO DURANTE EL MES DE LA ENCUESTA]]/1000 -> 0.4 | K43: 10 | L43: 8 | N43: 8 | O43: 8 | Q43: 8 | R43: 12
A44: 2019-12-01 | B44: =DAY(EOMONTH(Base[[#This Row],[FECHA]],0)) -> 31 | C44: =+PROPER(TEXT(Base[[#This Row],[FECHA]],"MMMM")) -> Diciembre | D44: =+YEAR(Base[[#This Row],[FECHA]]) -> 2019 | E44: Manuela Sáenz | F44: 3 estrellas | G44: Hotel | H44: 29 | I44: 1992.61 | J44: =Base[[#This Row],[VENTAS POR ALOJAMIENTO DURANTE EL MES DE LA ENCUESTA]]/1000 -> 1.99261 | K44: 0 | N44: 0 | Q44: 0 | R44: 6
A45: 2019-12-01 | B45: =DAY(EOMONTH(Base[[#This Row],[FECHA]],0)) -> 31 | C45: =+PROPER(TEXT(Base[[#This Row],[FECHA]],"MMMM")) -> Diciembre | D45: =+YEAR(Base[[#This Row],[FECHA]]) -> 2019 | E45: La Mariscal | F45: 4 estrellas | G45: Hotel | I45: 32394.84 | J45: =Base[[#This Row],[VENTAS POR ALOJAMIENTO DURANTE EL MES DE LA ENCUESTA]]/1000 -> 32.39484 | K45: 527 | L45: 20 | M45: 875 | N45: 895 | O45: 20 | P45: 875 | Q45: 895 | R45: 20
A46: 2019-12-01 | B46: =DAY(EOMONTH(Base[[#This Row],[FECHA]],0)) -> 31 | C46: =+PROPER(TEXT(Base[[#This Row],[FECHA]],"MMMM")) -> Diciembre | D46: =+YEAR(Base[[#This Row],[FECHA]]) -> 2019 | E46: Tumbaco | F46: 3 estrellas | G46: Hotel | H46: 18 | I46: 13509.89 | J46: =Base[[#This Row],[VENTAS POR ALOJAMIENTO DURANTE EL MES DE LA ENCUESTA]]/1000 -> 13.50989 | K46: 0 | N46: 0 | Q46: 0 | R46: 9
A47: 2019-12-01 | B47: =DAY(EOMONTH(Base[[#This Row],[FECHA]],0)) -> 31 | C47: =+PROPER(TEXT(Base[[#This Row],[FECHA]],"MMMM")) -> Diciembre | D47: =+YEAR(Base[[#This Row],[FECHA]]) -> 2019 | E47: Manuela Sáenz | F47: 5 estrellas | G47: Hotel | H47: 10 | J47: =Base[[#This Row],[VENTAS POR ALOJAMIENTO DURANTE EL MES DE LA ENCUESTA]]/1000 -> 0 | K47: 186 | L47: 3 | M47: 92 | N47: 95 | O47: 3 | P47: 92 | Q47: 95 | R47: 0
A48: 2019-12-01 | B48: =DAY(EOMONTH(Base[[#This Row],[FECHA]],0)) -> 31 | C48: =+PROPER(TEXT(Base[[#This Row],[FECHA]],"MMMM")) -> Diciembre | D48: =+YEAR(Base[[#This Row],[FECHA]]) -> 2019 | E48: Manuela Sáenz | F48: 3 estrellas | G48: Hotel | H48: 41 | I48: 6523.42 | J48: =Base[[#This Row],[VENTAS POR ALOJAMIENTO DURANTE EL MES DE LA ENCUESTA]]/1000 -> 6.52342 | K48: 164 | L48: 266 | N48: 266 | O48: 266 | Q48: 266 | R48: 8
A49: 2019-12-01 | B49: =DAY(EOMONTH(Base[[#This Row],[FECHA]],0)) -> 31 | C49: =+PROPER(TEXT(Base[[#This Row],[FECHA]],"MMMM")) -> Diciembre | D49: =+YEAR(Base[[#This Row],[FECHA]]) -> 2019 | E49: Manuela Sáenz | F49: 3 estrellas | G49: Hotel | H49: 21 | I49: 1297 | J49: =Base[[#This Row],[VENTAS POR ALOJAMIENTO DURANTE EL MES DE LA ENCUESTA]]/1000 -> 1.297 | K49: 0 | L49: 46 | M49: 33 | N49: 79 | O49: 46 | P49: 33 | Q49: 79 | R49: 4
A50: 2019-12-01 | B50: =DAY(EOMONTH(Base[[#This Row],[FECHA]],0)) -> 31 | C50: =+PROPER(TEXT(Base[[#This Row],[FECHA]],"MMMM")) -> Diciembre | D50: =+YEAR(Base[[#This Row],[FECHA]]) -> 2019 | E50: Tumbaco | F50: 3 estrellas | G50: Hostal | H50: 5 | I50: 744.73 | J50: =Base[[#This Row],[VENTAS POR ALOJAMIENTO DURANTE EL MES DE LA ENCUESTA]]/1000 -> 0.74473 | K50: 10 | L50: 5 | M50: 1 | N50: 6 | O50: 7 | P50: 3 | Q50: 10 | R50: 0
A51: 2019-12-01 | B51: =DAY(EOMONTH(Base[[#This Row],[FECHA]],0)) -> 31 | C51: =+PROPER(TEXT(Base[[#This Row],[FECHA]],"MMMM")) -> Diciembre | D51: =+YEAR(Base[[#This Row],[FECHA]]) -> 2019 | E51: Eugenio Espejo | F51: 3 estrellas | G51: Hostal | H51: 25 | I51: 5745.65 | J51: =Base[[#This Row],[VENTAS POR ALOJAMIENTO DURANTE EL MES DE LA ENCUESTA]]/1000 -> 5.74565 | K51: 138 | L51: 129 | M51: 21 | N51: 150 | O51: 139 | P51: 21 | Q51: 150 | R51: 9
A52: 2019-12-01 | B52: =DAY(EOMONTH(Base[[#This Row],[FECHA]],0)) -> 31 | C52: =+PROPER(TEXT(Base[[#This Row],[FECHA]],"MMMM")) -> Diciembre | D52: =+YEAR(Base[[#This Row],[FECHA]]) -> 2019 | E52: La Mariscal | F52: 4 estrellas | G52: Hotel | H52: 12 | J52: =Base[[#This Row],[VENTAS POR ALOJAMIENTO DURANTE EL MES DE LA ENCUESTA]]/1000 -> 0 | K52: 200 | L52: 5 | M52: 200 | N52: 205 | O52: 5 | P52: 200 | Q52: 205 | R52: 9
A53: 2019-12-01 | B53: =DAY(EOMONTH(Base[[#This Row],[FECHA]],0)) -> 31 | C53: =+PROPER(TEXT(Base[[#This Row],[FECHA]],"MMMM")) -> Diciembre | D53: =+YEAR(Base[[#This Row],[FECHA]]) -> 2019 | E53: Eugenio Espejo | F53: 3 estrellas | G53: Hostería | H53: 5 | J53: =Base[[#This Row],[VENTAS POR ALOJAMIENTO DURANTE EL MES DE LA ENCUESTA]]/1000 -> 0 | K53: 0 | N53: 0 | Q53: 0 | R53: 7
A54: 2019-12-01 | B54: =DAY(EOMONTH(Base[[#This Row],[FECHA]],0)) -> 31 | C54: =+PROPER(TEXT(Base[[#This Row],[FECHA]],"MMMM")) -> Diciembre | D54: =+YEAR(Base[[#This Row],[FECHA]]) -> 2019 | E54: Manuela Sáenz | F54: 4 estrellas | G54: Hotel | H54: 22 | I54: 44800 | J54: =Base[[#This Row],[VENTAS POR ALOJAMIENTO DURANTE EL MES DE LA ENCUESTA]]/1000 -> 44.8 | K54: 414 | M54: 774 | N54: 774 | P54: 774 | Q54: 774 | R54: 23
A55: 2019-12-01 | B55: =DAY(EOMONTH(Base[[#This Row],[FECHA]],0)) -> 31 | C55: =+PROPER(TEXT(Base[[#This Row],[FECHA]],"MMMM")) -> Diciembre | D55: =+YEAR(Base[[#This Row],[FECHA]]) -> 2019 | E55: Eugenio Espejo | F55: 4 estrellas | G55: Hotel | H55: 30 | I55: 70172.01 | J55: =Base[[#This Row],[VENTAS POR ALOJAMIENTO DURANTE EL MES DE LA ENCUESTA]]/1000 -> 70.17201 | K55: 618 | L55: 138 | M55: 809 | N55: 947 | O55: 138 | P55: 809 | Q55: 947 | R55: 44
A56: 2019-12-01 | B56: =DAY(EOMONTH(Base[[#This Row],[FECHA]],0)) -> 31 | C56: =+PROPER(TEXT(Base[[#This Row],[FECHA]],"MMMM")) -> Diciembre | D56: =+YEAR(Base[[#This Row],[FECHA]]) -> 2019 | E56: Manuela Sáenz | F56: 4 estrellas | G56: Hostal | H56: 15 | J56: =Base[[#This Row],[VENTAS POR ALOJAMIENTO DURANTE EL MES DE LA ENCUESTA]]/1000 -> 0 | K56: 0 | N56: 0 | Q56: 0 | R56: 10
A57: 2019-12-01 | B57: =DAY(EOMONTH(Base[[#This Row],[FECHA]],0)) -> 31 | C57: =+PROPER(TEXT(Base[[#This Row],[FECHA]],"MMMM")) -> Diciembre | D57: =+YEAR(Base[[#This Row],[FECHA]]) -> 2019 | E57: La Mariscal | F57: 3 estrellas | G57: Hotel | H57: 10 | J57: =Base[[#This Row],[VENTAS POR ALOJAMIENTO DURANTE EL MES DE LA ENCUESTA]]/1000 -> 0 | K57: 368 | N57: 0 | Q57: 0 | R57: 7
A58: 2019-12-01 | B58: =DAY(EOMONTH(Base[[#This Row],[FECHA]],0)) -> 31 | C58: =+PROPER(TEXT(Base[[#This Row],[FECHA]],"MMMM")) -> Diciembre | D58: =+YEAR(Base[[#This Row],[FECHA]]) -> 2019 | E58: La Mariscal | F58: 4 estrellas | G58: Hotel | H58: 55 | I58: 34839.75 | J58: =Base[[#This Row],[VENTAS POR ALOJAMIENTO DURANTE EL MES DE LA ENCUESTA]]/1000 -> 34.83975 | K58: 550 | N58: 0 | Q58: 0 | R58: 18
A59: 2019-12-01 | B59: =DAY(EOMONTH(Base[[#This Row],[FECHA]],0)) -> 31 | C59: =+PROPER(TEXT(Base[[#This Row],[FECHA]],"MMMM")) -> Diciembre | D59: =+YEAR(Base[[#This Row],[FECHA]]) -> 2019 | E59: La Mariscal | F59: 3 estrellas | G59: Hotel | H59: 16 | I59: 2835 | J59: =Base[[#This Row],[VENTAS POR ALOJAMIENTO DURANTE EL MES DE LA ENCUESTA]]/1000 -> 2.835 | K59: 112 | N59: 0 | O59: 107 | P59: 10 | Q59: 117 | R59: 6
A60: 2019-12-01 | B60: =DAY(EOMONTH(Base[[#This Row],[FECHA]],0)) -> 31 | C60: =+PROPER(TEXT(Base[[#This Row],[FECHA]],"MMMM")) -> Diciembre | D60: =+YEAR(Base[[#This Row],[FECHA]]) -> 2019 | E60: Manuela Sáenz | F60: 3 estrellas | G60: Hotel | H60: 31 | I60: 12000 | J60: =Base[[#This Row],[VENTAS POR ALOJAMIENTO DURANTE EL MES DE LA ENCUESTA]]/1000 -> 12 | K60: 1195 | L60: 43 | M60: 187 | N60: 230 | O60: 55 | P60: 187 | Q60: 230 | R60: 4
A61: 2019-12-01 | B61: =DAY(EOMONTH(Base[[#This Row],[FECHA]],0)) -> 31 | C61: =+PROPER(TEXT(Base[[#This Row],[FECHA]],"MMMM")) -> Diciembre | D61: =+YEAR(Base[[#This Row],[FECHA]]) -> 2019 | E61: La Mariscal | F61: 4 estrellas | G61: Hotel | H61: 100 | J61: =Base[[#This Row],[VENTAS POR ALOJAMIENTO DURANTE EL MES DE LA ENCUESTA]]/1000 -> 0 | K61: 0 | N61: 0 | Q61: 0 | R61: 63
A62: 2019-12-01 | B62: =DAY(EOMONTH(Base[[#This Row],[FECHA]],0)) -> 31 | C62: =+PROPER(TEXT(Base[[#This Row],[FECHA]],"MMMM")) -> Diciembre | D62: =+YEAR(Base[[#This Row],[FECHA]]) -> 2019 | E62: Tumbaco | F62: 3 estrellas | G62: Hostería | H62: 8 | I62: 9670 | J62: =Base[[#This Row],[VENTAS POR ALOJAMIENTO DURANTE EL MES DE LA ENCUESTA]]/1000 -> 9.67 | K62: 110 | L62: 67 | N62: 67 | O62: 180 | Q62: 180 | R62: 4
A63: 2019-12-01 | B63: =DAY(EOMONTH(Base[[#This Row],[FECHA]],0)) -> 31 | C63: =+PROPER(TEXT(Base[[#This Row],[FECHA]],"MMMM")) -> Diciembre | D63: =+YEAR(Base[[#This Row],[FECHA]]) -> 2019 | E63: Eugenio Espejo | F63: 3 estrellas | G63: Hotel | H63: 28 | I63: 21453 | J63: =Base[[#This Row],[VENTAS POR ALOJAMIENTO DURANTE EL MES DE LA ENCUESTA]]/1000 -> 21.453 | K63: 439 | L63: 410 | M63: 176 | N63: 586 | O63: 410 | P63: 176 | Q63: 586 | R63: 6
A64: 2019-12-01 | B64: =DAY(EOMONTH(Base[[#This Row],[FECHA]],0)) -> 31 | C64: =+PROPER(TEXT(Base[[#This Row],[FECHA]],"MMMM")) -> Diciembre | D64: =+YEAR(Base[[#This Row],[FECHA]]) -> 2019 | E64: La Mariscal | F64: 3 estrellas | G64: Hotel | H64: 23 | I64: 6277 | J64: =Base[[#This Row],[VENTAS POR ALOJAMIENTO DURANTE EL MES DE LA ENCUESTA]]/1000 -> 6.277 | K64: 205 | L64: 162 | M64: 25 | N64: 187 | O64: 241 | P64: 46 | Q64: 287 | R64: 9
A65: 2019-12-01 | B65: =DAY(EOMONTH(Base[[#This Row],[FECHA]],0)) -> 31 | C65: =+PROPER(TEXT(Base[[#This Row],[FECHA]],"MMMM")) -> Diciembre | D65: =+YEAR(Base[[#This Row],[FECHA]]) -> 2019 | E65: Eugenio Espejo | F65: 4 estrellas | G65: Hotel | H65: 25 | I65: 29326.43 | J65: =Base[[#This Row],[VENTAS POR ALOJAMIENTO DURANTE EL MES DE LA ENCUESTA]]/1000 -> 29.32643 | K65: 190 | L65: 76 | M65: 126 | N65: 202 | O65: 114 | P65: 417 | Q65: 531 | R65: 18
A66: 2019-12-01 | B66: =DAY(EOMONTH(Base[[#This Row],[FECHA]],0)) -> 31 | C66: =+PROPER(TEXT(Base[[#This Row],[FECHA]],"MMMM")) -> Diciembre | D66: =+YEAR(Base[[#This Row],[FECHA]]) -> 2019 | E66: Tumbaco | F66: 3 estrellas | G66: Hotel | H66: 15 | I66: 12000 | J66: =Base[[#This Row],[VENTAS POR ALOJAMIENTO DURANTE EL MES DE LA ENCUESTA]]/1000 -> 12 | K66: 89 | L66: 75 | M66: 17 | N66: 92 | O66: 75 | P66: 17 | Q66: 92 | R66: 16
A67: 2019-12-01 | B67: =DAY(EOMONTH(Base[[#This Row],[FECHA]],0)) -> 31 | C67: =+PROPER(TEXT(Base[[#This Row],[FECHA]],"MMMM")) -> Diciembre | D67: =+YEAR(Base[[#This Row],[FECHA]]) -> 2019 | E67: La Mariscal | F67: 5 estrellas | G67: Hotel | H67: 275 | I67: 427273 | J67: =Base[[#This Row],[VENTAS POR ALOJAMIENTO DURANTE EL MES DE LA ENCUESTA]]/1000 -> 427.273 | K67: 4315 | L67: 1273 | M67: 1934 | N67: 3207 | O67: 1963 | P67: 4260 | Q67: 6223 | R67: 722
A68: 2019-12-01 | B68: =DAY(EOMONTH(Base[[#This Row],[FECHA]],0)) -> 31 | C68: =+PROPER(TEXT(Base[[#This Row],[FECHA]],"MMMM")) -> Diciembre | D68: =+YEAR(Base[[#This Row],[FECHA]]) -> 2019 | E68: La Delicia | F68: 3 estrellas | G68: Hacienda Turística | H68: 12 | I68: 11096.1 | J68: =Base[[#This Row],[VENTAS POR ALOJAMIENTO DURANTE EL MES DE LA ENCUESTA]]/1000 -> 11.0961 | K68: 29 | L68: 14 | M68: 29 | N68: 43 | O68: 20 | P68: 64 | Q68: 84 | R68: 8
A69: 2019-12-01 | B69: =DAY(EOMONTH(Base[[#This Row],[FECHA]],0)) -> 31 | C69: =+PROPER(TEXT(Base[[#This Row],[FECHA]],"MMMM")) -> Diciembre | D69: =+YEAR(Base[[#This Row],[FECHA]]) -> 2019 | E69: Manuela Sáenz | F69: 4 estrellas | G69: Hotel | H69: 6 | I69: 17150 | J69: =Base[[#This Row],[VENTAS POR ALOJAMIENTO DURANTE EL MES DE LA ENCUESTA]]/1000 -> 17.15 | K69: 81 | R69: 10
A70: 2019-12-01 | B70: =DAY(EOMONTH(Base[[#This Row],[FECHA]],0)) -> 31 | C70: =+PROPER(TEXT(Base[[#This Row],[FECHA]],"MMMM")) -> Diciembre | D70: =+YEAR(Base[[#This Row],[FECHA]]) -> 2019 | E70: Tumbaco | F70: 3 estrellas | G70: Hacienda Turística | H70: 20 | I70: 711 | J70: =Base[[#This Row],[VENTAS POR ALOJAMIENTO DURANTE EL MES DE LA ENCUESTA]]/1000 -> 0.711 | K70: 10 | L70: 10 | N70: 10 | O70: 10 | Q70: 10 | R70: 1
A71: 2019-12-01 | B71: =DAY(EOMONTH(Base[[#This Row],[FECHA]],0)) -> 31 | C71: =+PROPER(TEXT(Base[[#This Row],[FECHA]],"MMMM")) -> Diciembre | D71: =+YEAR(Base[[#This Row],[FECHA]]) -> 2019 | E71: La Mariscal | F71: 3 estrellas | G71: Hotel | H71: 22 | J71: =Base[[#This Row],[VENTAS POR ALOJAMIENTO DURANTE EL MES DE LA ENCUESTA]]/1000 -> 0 | K71: 0 | L71: 2 | M71: 7 | N71: 9 | O71: 2 | P71: 7 | Q71: 9 | R71: 4
A72: 2020-01-01 | B72: =DAY(EOMONTH(Base[[#This Row],[FECHA]],0)) -> 31 | C72: =+PROPER(TEXT(Base[[#This Row],[FECHA]],"MMMM")) -> Enero | D72: =+YEAR(Base[[#This Row],[FECHA]]) -> 2020 | E72: Eugenio Espejo | F72: 3 estrellas | G72: Hotel | H72: 12 | I72: 8979.07 | J72: =Base[[#This Row],[VENTAS POR ALOJAMIENTO DURANTE EL MES DE LA ENCUESTA]]/1000 -> 8.97907 | K72: 110 | L72: 93 | M72: 77 | N72: 170 | O72: 294 | P72: 77 | Q72: 371 | R72: 6
A73: 2020-01-01 | B73: =DAY(EOMONTH(Base[[#This Row],[FECHA]],0)) -> 31 | C73: =+PROPER(TEXT(Base[[#This Row],[FECHA]],"MMMM")) -> Enero | D73: =+YEAR(Base[[#This Row],[FECHA]]) -> 2020 | E73: Eugenio Espejo | F73: 5 estrellas | G73: Hotel | I73: 90488.11 | J73: =Base[[#This Row],[VENTAS POR ALOJAMIENTO DURANTE EL MES DE LA ENCUESTA]]/1000 -> 90.48811 | K73: 1379 | O73: 9 | P73: 0 | Q73: 9 | R73: 0
A74: 2020-01-01 | B74: =DAY(EOMONTH(Base[[#This Row],[FECHA]],0)) -> 31 | C74: =+PROPER(TEXT(Base[[#This Row],[FECHA]],"MMMM")) -> Enero | D74: =+YEAR(Base[[#This Row],[FECHA]]) -> 2020 | E74: Tumbaco | F74: 5 estrellas | G74: Hotel | H74: 7 | I74: 3144.41 | J74: =Base[[#This Row],[VENTAS POR ALOJAMIENTO DURANTE EL MES DE LA ENCUESTA]]/1000 -> 3.14441 | K74: 33 | L74: 9 | M74: 72 | N74: 81 | O74: 9 | P74: 72 | Q74: 81 | R74: 5
A75: 2020-01-01 | B75: =DAY(EOMONTH(Base[[#This Row],[FECHA]],0)) -> 31 | C75: =+PROPER(TEXT(Base[[#This Row],[FECHA]],"MMMM")) -> Enero | D75: =+YEAR(Base[[#This Row],[FECHA]]) -> 2020 | E75: Tumbaco | F75: 5 estrellas | G75: Hotel | I75: 2370 | J75: =Base[[#This Row],[VENTAS POR ALOJAMIENTO DURANTE EL MES DE LA ENCUESTA]]/1000 -> 2.37 | K75: 28 | L75: 0 | M75: 46 | N75: 46 | O75: 0 | P75: 46 | Q75: 46 | R75: 4
A76: 2020-01-01 | B76: =DAY(EOMONTH(Base[[#This Row],[FECHA]],0)) -> 31 | C76: =+PROPER(TEXT(Base[[#This Row],[FECHA]],"MMMM")) -> Enero | D76: =+YEAR(Base[[#This Row],[FECHA]]) -> 2020 | E76: La Mariscal | F76: 3 estrellas | G76: Hotel | H76: 20 | I76: 10406 | J76: =Base[[#This Row],[VENTAS POR ALOJAMIENTO DURANTE EL MES DE LA ENCUESTA]]/1000 -> 10.406 | K76: 242 | L76: 19 | M76: 218 | N76: 237 | O76: 430 | P76: 356 | Q76: 786 | R76: 8
A77: 2020-01-01 | B77: =DAY(EOMONTH(Base[[#This Row],[FECHA]],0)) -> 31 | C77: =+PROPER(TEXT(Base[[#This Row],[FECHA]],"MMMM")) -> Enero | D77: =+YEAR(Base[[#This Row],[FECHA]]) -> 2020 | E77: Manuela Sáenz | F77: 4 estrellas | G77: Hotel | H77: 558 | I77: 1352 | J77: =Base[[#This Row],[VENTAS POR ALOJAMIENTO DURANTE EL MES DE LA ENCUESTA]]/1000 -> 1.352 | K77: 11 | L77: 0 | M77: 9 | N77: 9 | O77: 749 | P77: 9 | Q77: 758 | R77: 7
A78: 2020-01-01 | B78: =DAY(EOMONTH(Base[[#This Row],[FECHA]],0)) -> 31 | C78: =+PROPER(TEXT(Base[[#This Row],[FECHA]],"MMMM")) -> Enero | D78: =+YEAR(Base[[#This Row],[FECHA]]) -> 2020 | E78: La Mariscal | F78: 5 estrellas | G78: Hotel | H78: 255 | I78: 479777 | J78: =Base[[#This Row],[VENTAS POR ALOJAMIENTO DURANTE EL MES DE LA ENCUESTA]]/1000 -> 479.777 | K78: 4726 | L78: 264 | M78: 2378 | N78: 2642 | O78: 0 | P78: 4253 | Q78: 4253 | R78: 411
A79: 2020-01-01 | B79: =DAY(EOMONTH(Base[[#This Row],[FECHA]],0)) -> 31 | C79: =+PROPER(TEXT(Base[[#This Row],[FECHA]],"MMMM")) -> Enero | D79: =+YEAR(Base[[#This Row],[FECHA]]) -> 2020 | E79: La Mariscal | F79: 4 estrellas | G79: Hotel | H79: 141 | I79: 194400 | J79: =Base[[#This Row],[VENTAS POR ALOJAMIENTO DURANTE EL MES DE LA ENCUESTA]]/1000 -> 194.4 | K79: 0 | N79: 0 | O79: 16 | P79: 0 | Q79: 16 | R79: 44
A80: 2020-01-01 | B80: =DAY(EOMONTH(Base[[#This Row],[FECHA]],0)) -> 31 | C80: =+PROPER(TEXT(Base[[#This Row],[FECHA]],"MMMM")) -> Enero | D80: =+YEAR(Base[[#This Row],[FECHA]]) -> 2020 | E80: Manuela Sáenz | F80: 3 estrellas | G80: Hotel | H80: 6 | I80: 5000 | J80: =Base[[#This Row],[VENTAS POR ALOJAMIENTO DURANTE EL MES DE LA ENCUESTA]]/1000 -> 5 | K80: 5 | L80: 0 | M80: 40 | N80: 40 | O80: 21 | P80: 40 | Q80: 61 | R80: 6
A81: 2020-01-01 | B81: =DAY(EOMONTH(Base[[#This Row],[FECHA]],0)) -> 31 | C81: =+PROPER(TEXT(Base[[#This Row],[FECHA]],"MMMM")) -> Enero | D81: =+YEAR(Base[[#This Row],[FECHA]]) -> 2020 | E81: La Delicia | F81: 3 estrellas | G81: Hostería | H81: 14 | I81: 1408 | J81: =Base[[#This Row],[VENTAS POR ALOJAMIENTO DURANTE EL MES DE LA ENCUESTA]]/1000 -> 1.408 | K81: 26 | L81: 16 | N81: 16 | O81: 298 | P81: 19 | Q81: 317 | R81: 11
A82: 2020-01-01 | B82: =DAY(EOMONTH(Base[[#This Row],[FECHA]],0)) -> 31 | C82: =+PROPER(TEXT(Base[[#This Row],[FECHA]],"MMMM")) -> Enero | D82: =+YEAR(Base[[#This Row],[FECHA]]) -> 2020 | E82: Los Chillos | F82: 3 estrellas | G82: Hostería | H82: 13 | I82: 160 | J82: =Base[[#This Row],[VENTAS POR ALOJAMIENTO DURANTE EL MES DE LA ENCUESTA]]/1000 -> 0.16 | K82: 8 | L82: 8 | M82: 0 | N82: 8 | O82: 13 | P82: 0 | Q82: 13 | R82: 6
A83: 2020-01-01 | B83: =DAY(EOMONTH(Base[[#This Row],[FECHA]],0)) -> 31 | C83: =+PROPER(TEXT(Base[[#This Row],[FECHA]],"MMMM")) -> Enero | D83: =+YEAR(Base[[#This Row],[FECHA]]) -> 2020 | E83: Los Chillos | F83: 3 estrellas | G83: Hostería | K83: 0 | O83: 25 | P83: 0 | Q83: 25 | R83: 7
A84: 2020-01-01 | B84: =DAY(EOMONTH(Base[[#This Row],[FECHA]],0)) -> 31 | C84: =+PROPER(TEXT(Base[[#This Row],[FECHA]],"MMMM")) -> Enero | D84: =+YEAR(Base[[#This Row],[FECHA]]) -> 2020 | E84: Los Chillos | F84: 4 estrellas | G84: Hacienda Turística | H84: 6 | K84: 0 | O84: 50 | P84: 0 | Q84: 50 | R84: 5
A85: 2020-01-01 | B85: =DAY(EOMONTH(Base[[#This Row],[FECHA]],0)) -> 31 | C85: =+PROPER(TEXT(Base[[#This Row],[FECHA]],"MMMM")) -> Enero | D85: =+YEAR(Base[[#This Row],[FECHA]]) -> 2020 | E85: Tumbaco | F85: 3 estrellas | G85: Hostería | H85: 6 | K85: 0 | O85: 5 | P85: 0 | Q85: 5 | R85: 6
A86: 2020-01-01 | B86: =DAY(EOMONTH(Base[[#This Row],[FECHA]],0)) -> 31 | C86: =+PROPER(TEXT(Base[[#This Row],[FECHA]],"MMMM")) -> Enero | D86: =+YEAR(Base[[#This Row],[FECHA]]) -> 2020 | E86: Manuela Sáenz | F86: 4 estrellas | G86: Hotel | H86: 49 | I86: 25573 | J86: =Base[[#This Row],[VENTAS POR ALOJAMIENTO DURANTE EL MES DE LA ENCUESTA]]/1000 -> 25.573 | K86: 243 | L86: 236 | M86: 93 | N86: 329 | O86: 236 | P86: 93 | Q86: 329 | R86: 36
A87: 2020-01-01 | B87: =DAY(EOMONTH(Base[[#This Row],[FECHA]],0)) -> 31 | C87: =+PROPER(TEXT(Base[[#This Row],[FECHA]],"MMMM")) -> Enero | D87: =+YEAR(Base[[#This Row],[FECHA]]) -> 2020 | E87: Manuela Sáenz | F87: 3 estrellas | G87: Hotel | H87: 24 | I87: 15000 | J87: =Base[[#This Row],[VENTAS POR ALOJAMIENTO DURANTE EL MES DE LA ENCUESTA]]/1000 -> 15 | K87: 160 | L87: 5 | M87: 145 | N87: 150 | O87: 1620 | P87: 145 | Q87: 1765 | R87: 11
A88: 2020-01-01 | B88: =DAY(EOMONTH(Base[[#This Row],[FECHA]],0)) -> 31 | C88: =+PROPER(TEXT(Base[[#This Row],[FECHA]],"MMMM")) -> Enero | D88: =+YEAR(Base[[#This Row],[FECHA]]) -> 2020 | E88: Eugenio Espejo | F88: 5 estrellas | G88: Hotel | H88: 210 | K88: 4740 | O88: 798 | P88: 4665 | Q88: 5463 | R88: 198
A89: 2020-01-01 | B89: =DAY(EOMONTH(Base[[#This Row],[FECHA]],0)) -> 31 | C89: =+PROPER(TEXT(Base[[#This Row],[FECHA]],"MMMM")) -> Enero | D89: =+YEAR(Base[[#This Row],[FECHA]]) -> 2020 | E89: Manuela Sáenz | F89: 3 estrellas | G89: Hotel | H89: 32 | K89: 450 | L89: 430 | M89: 20 | N89: 450 | O89: 430 | P89: 20 | Q89: 450 | R89: 6
A90: 2020-01-01 | B90: =DAY(EOMONTH(Base[[#This Row],[FECHA]],0)) -> 31 | C90: =+PROPER(TEXT(Base[[#This Row],[FECHA]],"MMMM")) -> Enero | D90: =+YEAR(Base[[#This Row],[FECHA]]) -> 2020 | E90: Eugenio Espejo | F90: 4 estrellas | G90: Hotel | H90: 152 | K90: 3008 | L90: 1620 | M90: 710 | N90: 2330 | O90: 1620 | P90: 710 | Q90: 2330 | R90: 67
A91: 2020-01-01 | B91: =DAY(EOMONTH(Base[[#This Row],[FECHA]],0)) -> 31 | C91: =+PROPER(TEXT(Base[[#This Row],[FECHA]],"MMMM")) -> Enero | D91: =+YEAR(Base[[#This Row],[FECHA]]) -> 2020 | E91: Eugenio Espejo | F91: 3 estrellas | G91: Hotel | H91: 40 | K91: 110 | L91: 70 | M91: 70 | N91: 140 | O91: 70 | P91: 70 | Q91: 140 | R91: 6
A92: 2020-01-01 | B92: =DAY(EOMONTH(Base[[#This Row],[FECHA]],0)) -> 31 | C92: =+PROPER(TEXT(Base[[#This Row],[FECHA]],"MMMM")) -> Enero | D92: =+YEAR(Base[[#This Row],[FECHA]]) -> 2020 | E92: Eugenio Espejo | F92: 3 estrellas | G92: Hotel | H92: 16 | I92: 3000 | J92: =Base[[#This Row],[VENTAS POR ALOJAMIENTO DURANTE EL MES DE LA ENCUESTA]]/1000 -> 3 | K92: 52 | L92: 40 | M92: 12 | N92: 52 | O92: 40 | P92: 12 | Q92: 52 | R92: 4
A93: 2020-01-01 | B93: =DAY(EOMONTH(Base[[#This Row],[FECHA]],0)) -> 31 | C93: =+PROPER(TEXT(Base[[#This Row],[FECHA]],"MMMM")) -> Enero | D93: =+YEAR(Base[[#This Row],[FECHA]]) -> 2020 | E93: Manuela Sáenz | F93: 4 estrellas | G93: Hotel | H93: 32 | I93: 67686 | J93: =Base[[#This Row],[VENTAS POR ALOJAMIENTO DURANTE EL MES DE LA ENCUESTA]]/1000 -> 67.686 | K93: 618 | L93: 0 | M93: 1052 | N93: 1052 | O93: 8 | P93: 1052 | Q93: 1060 | R93: 48
A94: 2020-01-01 | B94: =DAY(EOMONTH(Base[[#This Row],[FECHA]],0)) -> 31 | C94: =+PROPER(TEXT(Base[[#This Row],[FECHA]],"MMMM")) -> Enero | D94: =+YEAR(Base[[#This Row],[FECHA]]) -> 2020 | E94: Manuela Sáenz | F94: 5 estrellas | G94: Hotel | H94: 15 | I94: 67875 | J94: =Base[[#This Row],[VENTAS POR ALOJAMIENTO DURANTE EL MES DE LA ENCUESTA]]/1000 -> 67.875 | K94: 148 | L94: 0 | M94: 148 | N94: 148 | O94: 0 | P94: 296 | Q94: 296 | R94: 43
A95: 2020-01-01 | B95: =DAY(EOMONTH(Base[[#This Row],[FECHA]],0)) -> 31 | C95: =+PROPER(TEXT(Base[[#This Row],[FECHA]],"MMMM")) -> Enero | D95: =+YEAR(Base[[#This Row],[FECHA]]) -> 2020 | E95: Manuela Sáenz | F95: 4 estrellas | G95: Hotel | H95: 80 | I95: 18598 | J95: =Base[[#This Row],[VENTAS POR ALOJAMIENTO DURANTE EL MES DE LA ENCUESTA]]/1000 -> 18.598 | K95: 309 | O95: 45 | P95: 157 | Q95: 202 | R95: 35
A96: 2020-01-01 | B96: =DAY(EOMONTH(Base[[#This Row],[FECHA]],0)) -> 31 | C96: =+PROPER(TEXT(Base[[#This Row],[FECHA]],"MMMM")) -> Enero | D96: =+YEAR(Base[[#This Row],[FECHA]]) -> 2020 | E96: Eugenio Espejo | F96: 3 estrellas | G96: Hotel | H96: 13 | I96: 52.66 | J96: =Base[[#This Row],[VENTAS POR ALOJAMIENTO DURANTE EL MES DE LA ENCUESTA]]/1000 -> 0.05266 | K96: 117 | L96: 62 | M96: 3 | N96: 65 | O96: 62 | P96: 3 | Q96: 65 | R96: 0
A97: 2020-01-01 | B97: =DAY(EOMONTH(Base[[#This Row],[FECHA]],0)) -> 31 | C97: =+PROPER(TEXT(Base[[#This Row],[FECHA]],"MMMM")) -> Enero | D97: =+YEAR(Base[[#This Row],[FECHA]]) -> 2020 | E97: Tumbaco | F97: 3 estrellas | G97: Hostal | H97: 279 | I97: 409.38 | J97: =Base[[#This Row],[VENTAS POR ALOJAMIENTO DURANTE EL MES DE LA ENCUESTA]]/1000 -> 0.40938 | K97: 12 | L97: 10 | M97: 2 | N97: 12 | O97: 10 | P97: 2 | Q97: 12
A98: 2020-01-01 | B98: =DAY(EOMONTH(Base[[#This Row],[FECHA]],0)) -> 31 | C98: =+PROPER(TEXT(Base[[#This Row],[FECHA]],"MMMM")) -> Enero | D98: =+YEAR(Base[[#This Row],[FECHA]]) -> 2020 | E98: Eloy Alfaro | F98: 3 estrellas | G98: Hotel | H98: 40 | K98: 40 | L98: 3 | M98: 2 | N98: 5 | O98: 14 | P98: 2 | Q98: 16 | R98: 13
A99: 2020-01-01 | B99: =DAY(EOMONTH(Base[[#This Row],[FECHA]],0)) -> 31 | C99: =+PROPER(TEXT(Base[[#This Row],[FECHA]],"MMMM")) -> Enero | D99: =+YEAR(Base[[#This Row],[FECHA]]) -> 2020 | E99: La Mariscal | F99: 4 estrellas | G99: Hotel | H99: 44 | I99: 37430.59 | J99: =Base[[#This Row],[VENTAS POR ALOJAMIENTO DURANTE EL MES DE LA ENCUESTA]]/1000 -> 37.43059 | K99: 669 | L99: 14 | M99: 1084 | N99: 1098 | O99: 14 | P99: 1084 | Q99: 1098 | R99: 20
A100: 2020-01-01 | B100: =DAY(EOMONTH(Base[[#This Row],[FECHA]],0)) -> 31 | C100: =+PROPER(TEXT(Base[[#This Row],[FECHA]],"MMMM")) -> Enero | D100: =+YEAR(Base[[#This Row],[FECHA]]) -> 2020 | E100: Tumbaco | F100: 3 estrellas | G100: Hotel | H100: 18 | I100: 14482.13 | J100: =Base[[#This Row],[VENTAS POR ALOJAMIENTO DURANTE EL MES DE LA ENCUESTA]]/1000 -> 14.48213 | K100: 0 | O100: 6 | P100: 0 | Q100: 6 | R100: 9
A101: 2020-01-01 | B101: =DAY(EOMONTH(Base[[#This Row],[FECHA]],0)) -> 31 | C101: =+PROPER(TEXT(Base[[#This Row],[FECHA]],"MMMM")) -> Enero | D101: =+YEAR(Base[[#This Row],[FECHA]]) -> 2020 | E101: Manuela Sáenz | F101: 5 estrellas | G101: Hotel | H101: 10 | K101: 135 | L101: 6 | M101: 50 | N101: 56 | O101: 0 | P101: 120 | Q101: 120 | R101: 11
A102: 2020-01-01 | B102: =DAY(EOMONTH(Base[[#This Row],[FECHA]],0)) -> 31 | C102: =+PROPER(TEXT(Base[[#This Row],[FECHA]],"MMMM")) -> Enero | D102: =+YEAR(Base[[#This Row],[FECHA]]) -> 2020 | E102: Manuela Sáenz | F102: 3 estrellas | G102: Hotel | H102: 41 | I102: 5000 | J102: =Base[[#This Row],[VENTAS POR ALOJAMIENTO DURANTE EL MES DE LA ENCUESTA]]/1000 -> 5 | K102: 185 | L102: 294 | M102: 3 | N102: 297 | O102: 294 | P102: 3 | Q102: 297 | R102: 8
A103: 2020-01-01 | B103: =DAY(EOMONTH(Base[[#This Row],[FECHA]],0)) -> 31 | C103: =+PROPER(TEXT(Base[[#This Row],[FECHA]],"MMMM")) -> Enero | D103: =+YEAR(Base[[#This Row],[FECHA]]) -> 2020 | E103: Tumbaco | F103: 3 estrellas | G103: Hostal | H103: 5 | I103: 199.69 | J103: =Base[[#This Row],[VENTAS POR ALOJAMIENTO DURANTE EL MES DE LA ENCUESTA]]/1000 -> 0.19969 | K103: 29 | L103: 3 | M103: 4 | N103: 7 | O103: 60 | P103: 4 | Q103: 64
A104: 2020-01-01 | B104: =DAY(EOMONTH(Base[[#This Row],[FECHA]],0)) -> 31 | C104: =+PROPER(TEXT(Base[[#This Row],[FECHA]],"MMMM")) -> Enero | D104: =+YEAR(Base[[#This Row],[FECHA]]) -> 2020 | E104: La Delicia | F104: 4 estrellas | G104: Hostería | H104: 17 | I104: 3299.15 | J104: =Base[[#This Row],[VENTAS POR ALOJAMIENTO DURANTE EL MES DE LA ENCUESTA]]/1000 -> 3.29915 | K104: 23 | L104: 60 | M104: 1 | N104: 61 | O104: 60 | P104: 1 | Q104: 61 | R104: 7
A105: 2020-01-01 | B105: =DAY(EOMONTH(Base[[#This Row],[FECHA]],0)) -> 31 | C105: =+PROPER(TEXT(Base[[#This Row],[FECHA]],"MMMM")) -> Enero | D105: =+YEAR(Base[[#This Row],[FECHA]]) -> 2020 | E105: La Mariscal | F105: 4 estrellas | G105: Hotel | H105: 12 | I105: 7000 | J105: =Base[[#This Row],[VENTAS POR ALOJAMIENTO DURANTE EL MES DE LA ENCUESTA]]/1000 -> 7 | K105: 155 | L105: 4 | M105: 151 | N105: 155 | O105: 4 | P105: 151 | Q105: 155 | R105: 9
A106: 2020-01-01 | B106: =DAY(EOMONTH(Base[[#This Row],[FECHA]],0)) -> 31 | C106: =+PROPER(TEXT(Base[[#This Row],[FECHA]],"MMMM")) -> Enero | D106: =+YEAR(Base[[#This Row],[FECHA]]) -> 2020 | E106: Eugenio Espejo | F106: 3 estrellas | G106: Hostería | H106: 5 | I106: 160 | J106: =Base[[#This Row],[VENTAS POR ALOJAMIENTO DURANTE EL MES DE LA ENCUESTA]]/1000 -> 0.16 | K106: 2 | L106: 0 | M106: 2 | N106: 2 | O106: 0 | P106: 2 | Q106: 2 | R106: 7
A107: 2020-01-01 | B107: =DAY(EOMONTH(Base[[#This Row],[FECHA]],0)) -> 31 | C107: =+PROPER(TEXT(Base[[#This Row],[FECHA]],"MMMM")) -> Enero | D107: =+YEAR(Base[[#This Row],[FECHA]]) -> 2020 | E107: Tumbaco | F107: 5 estrellas | G107: Hacienda Turística | H107: 7 | I107: 1363.79 | J107: =Base[[#This Row],[VENTAS POR ALOJAMIENTO DURANTE EL MES DE LA ENCUESTA]]/1000 -> 1.36379 | K107: 12 | L107: 13 | M107: 10 | N107: 23 | O107: 473 | P107: 11 | Q107: 484 | R107: 7
A108: 2020-01-01 | B108: =DAY(EOMONTH(Base[[#This Row],[FECHA]],0)) -> 31 | C108: =+PROPER(TEXT(Base[[#This Row],[FECHA]],"MMMM")) -> Enero | D108: =+YEAR(Base[[#This Row],[FECHA]]) -> 2020 | E108: La Mariscal | F108: 3 estrellas | G108: Hotel | H108: 340 | I108: 7500 | J108: =Base[[#This Row],[VENTAS POR ALOJAMIENTO DURANTE EL MES DE LA ENCUESTA]]/1000 -> 7.5 | K108: 180 | N108: 0 | O108: 0 | P108: 0 | R108: 7
A109: 2020-01-01 | B109: =DAY(EOMONTH(Base[[#This Row],[FECHA]],0)) -> 31 | C109: =+PROPER(TEXT(Base[[#This Row],[FECHA]],"MMMM")) -> Enero | D109: =+YEAR(Base[[#This Row],[FECHA]]) -> 2020 | E109: La Mariscal | F109: 4 estrellas | G109: Hotel | H109: 55 | I109: 41675.94 | J109: =Base[[#This Row],[VENTAS POR ALOJAMIENTO DURANTE EL MES DE LA ENCUESTA]]/1000 -> 41.67594 | K109: 694 | N109: 0 | O109: 0 | P109: 0 | R109: 18
A110: 2020-01-01 | B110: =DAY(EOMONTH(Base[[#This Row],[FECHA]],0)) -> 31 | C110: =+PROPER(TEXT(Base[[#This Row],[FECHA]],"MMMM")) -> Enero | D110: =+YEAR(Base[[#This Row],[FECHA]]) -> 2020 | E110: La Mariscal | F110: 3 estrellas | G110: Hotel | H110: 16 | I110: 2233 | J110: =Base[[#This Row],[VENTAS POR ALOJAMIENTO DURANTE EL MES DE LA ENCUESTA]]/1000 -> 2.233 | K110: 117 | N110: 0 | O110: 0 | P110: 0 | R110: 6
A111: 2020-01-01 | B111: =DAY(EOMONTH(Base[[#This Row],[FECHA]],0)) -> 31 | C111: =+PROPER(TEXT(Base[[#This Row],[FECHA]],"MMMM")) -> Enero | D111: =+YEAR(Base[[#This Row],[FECHA]]) -> 2020 | E111: Manuela Sáenz | F111: 3 estrellas | G111: Hotel | H111: 31 | I111: 16000 | J111: =Base[[#This Row],[VENTAS POR ALOJAMIENTO DURANTE EL MES DE LA ENCUESTA]]/1000 -> 16 | K111: 286 | L111: 17 | M111: 244 | N111: 261 | O111: 17 | P111: 244 | Q111: 261 | R111: 20
A112: 2020-01-01 | B112: =DAY(EOMONTH(Base[[#This Row],[FECHA]],0)) -> 31 | C112: =+PROPER(TEXT(Base[[#This Row],[FECHA]],"MMMM")) -> Enero | D112: =+YEAR(Base[[#This Row],[FECHA]]) -> 2020 | E112: La Mariscal | F112: 4 estrellas | G112: Hotel | H112: 100 | K112: 0 | N112: 0 | O112: 0 | P112: 0 | R112: 57
A113: 2020-01-01 | B113: =DAY(EOMONTH(Base[[#This Row],[FECHA]],0)) -> 31 | C113: =+PROPER(TEXT(Base[[#This Row],[FECHA]],"MMMM")) -> Enero | D113: =+YEAR(Base[[#This Row],[FECHA]]) -> 2020 | E113: La Mariscal | F113: 4 estrellas | G113: Hotel | I113: 41649.27 | J113: =Base[[#This Row],[VENTAS POR ALOJAMIENTO DURANTE EL MES DE LA ENCUESTA]]/1000 -> 41.64927 | K113: 0 | L113: 798 | M113: 397 | N113: 1195 | O113: 798 | P113: 397 | Q113: 1195 | R113: 75
A114: 2020-01-01 | B114: =DAY(EOMONTH(Base[[#This Row],[FECHA]],0)) -> 31 | C114: =+PROPER(TEXT(Base[[#This Row],[FECHA]],"MMMM")) -> Enero | D114: =+YEAR(Base[[#This Row],[FECHA]]) -> 2020 | E114: Tumbaco | F114: 3 estrellas | G114: Hostería | H114: 8 | I114: 5215 | J114: =Base[[#This Row],[VENTAS POR ALOJAMIENTO DURANTE EL MES DE LA ENCUESTA]]/1000 -> 5.215 | K114: 51 | O114: 25 | P114: 0 | Q114: 25 | R114: 3
A115: 2020-01-01 | B115: =DAY(EOMONTH(Base[[#This Row],[FECHA]],0)) -> 31 | C115: =+PROPER(TEXT(Base[[#This Row],[FECHA]],"MMMM")) -> Enero | D115: =+YEAR(Base[[#This Row],[FECHA]]) -> 2020 | E115: Eugenio Espejo | F115: 3 estrellas | G115: Hotel | H115: 28 | I115: 18309.16 | J115: =Base[[#This Row],[VENTAS POR ALOJAMIENTO DURANTE EL MES DE LA ENCUESTA]]/1000 -> 18.30916 | K115: 361 | L115: 14 | M115: 4 | N115: 18 | O115: 14 | P115: 4 | Q115: 18 | R115: 6
A116: 2020-01-01 | B116: =DAY(EOMONTH(Base[[#This Row],[FECHA]],0)) -> 31 | C116: =+PROPER(TEXT(Base[[#This Row],[FECHA]],"MMMM")) -> Enero | D116: =+YEAR(Base[[#This Row],[FECHA]]) -> 2020 | E116: Eugenio Espejo | F116: 4 estrellas | G116: Hotel | H116: 29 | K116: 10 | L116: 25 | M116: 18 | N116: 43 | O116: 306 | P116: 18 | Q116: 324 | R116: 15
A117: 2020-01-01 | B117: =DAY(EOMONTH(Base[[#This Row],[FECHA]],0)) -> 31 | C117: =+PROPER(TEXT(Base[[#This Row],[FECHA]],"MMMM")) -> Enero | D117: =+YEAR(Base[[#This Row],[FECHA]]) -> 2020 | E117: La Mariscal | F117: 5 estrellas | G117: Hotel | H117: 275 | I117: 1056381 | J117: =Base[[#This Row],[VENTAS POR ALOJAMIENTO DURANTE EL MES DE LA ENCUESTA]]/1000 -> 1056.381 | K117: 4080 | L117: 378 | M117: 1370 | N117: 1748 | O117: 1112 | P117: 3331 | Q117: 4443 | R117: 449
A118: 2020-01-01 | B118: =DAY(EOMONTH(Base[[#This Row],[FECHA]],0)) -> 31 | C118: =+PROPER(TEXT(Base[[#This Row],[FECHA]],"MMMM")) -> Enero | D118: =+YEAR(Base[[#This Row],[FECHA]]) -> 2020 | E118: La Delicia | F118: 3 estrellas | G118: Hotel | H118: 12 | I118: 21266.15 | J118: =Base[[#This Row],[VENTAS POR ALOJAMIENTO DURANTE EL MES DE LA ENCUESTA]]/1000 -> 21.26615 | K118: 39 | L118: 13 | M118: 51 | N118: 64 | O118: 125 | P118: 187 | Q118: 312 | R118: 8
A119: 2020-01-01 | B119: =DAY(EOMONTH(Base[[#This Row],[FECHA]],0)) -> 31 | C119: =+PROPER(TEXT(Base[[#This Row],[FECHA]],"MMMM")) -> Enero | D119: =+YEAR(Base[[#This Row],[FECHA]]) -> 2020 | E119: Tumbaco | F119: 3 estrellas | G119: Hotel | H119: 20 | K119: 0 | O119: 40 | P119: 0 | Q119: 40 | R119: 1
A120: 2020-02-01 | B120: =DAY(EOMONTH(Base[[#This Row],[FECHA]],0)) -> 29 | C120: =+PROPER(TEXT(Base[[#This Row],[FECHA]],"MMMM")) -> Febrero | D120: =+YEAR(Base[[#This Row],[FECHA]]) -> 2020 | E120: La Delicia | F120: 3 estrellas | G120: Hostería | H120: 14 | I120: 6500 | J120: =Base[[#This Row],[VENTAS POR ALOJAMIENTO DURANTE EL MES DE LA ENCUESTA]]/1000 -> 6.5 | K120: 12 | L120: 9 | M120: 5 | N120: 14 | O120: 9 | P120: 5 | Q120: 14 | R120: 10
A121: 2020-02-01 | B121: =DAY(EOMONTH(Base[[#This Row],[FECHA]],0)) -> 29 | C121: =+PROPER(TEXT(Base[[#This Row],[FECHA]],"MMMM")) -> Febrero | D121: =+YEAR(Base[[#This Row],[FECHA]]) -> 2020 | E121: Manuela Sáenz | F121: 4 estrellas | G121: Hotel | H121: 49 | I121: 14959 | J121: =Base[[#This Row],[VENTAS POR ALOJAMIENTO DURANTE EL MES DE LA ENCUESTA]]/1000 -> 14.959 | K121: 316 | L121: 243 | M121: 149 | N121: 392 | O121: 256 | P121: 227 | Q121: 483 | R121: 44
A122: 2020-02-01 | B122: =DAY(EOMONTH(Base[[#This Row],[FECHA]],0)) -> 29 | C122: =+PROPER(TEXT(Base[[#This Row],[FECHA]],"MMMM")) -> Febrero | D122: =+YEAR(Base[[#This Row],[FECHA]]) -> 2020 | E122: La Delicia | F122: 4 estrellas | G122: Lodge | H122: 16 | I122: 22000 | J122: =Base[[#This Row],[VENTAS POR ALOJAMIENTO DURANTE EL MES DE LA ENCUESTA]]/1000 -> 22 | K122: 102 | L122: 25 | M122: 230 | N122: 255 | O122: 36 | P122: 276 | Q122: 312 | R122: 24
A123: 2020-02-01 | B123: =DAY(EOMONTH(Base[[#This Row],[FECHA]],0)) -> 29 | C123: =+PROPER(TEXT(Base[[#This Row],[FECHA]],"MMMM")) -> Febrero | D123: =+YEAR(Base[[#This Row],[FECHA]]) -> 2020 | E123: La Mariscal | F123: 3 estrellas | G123: Hotel | H123: 8 | I123: 1500 | J123: =Base[[#This Row],[VENTAS POR ALOJAMIENTO DURANTE EL MES DE LA ENCUESTA]]/1000 -> 1.5 | K123: 40 | N123: 0 | R123: 4
A124: 2020-02-01 | B124: =DAY(EOMONTH(Base[[#This Row],[FECHA]],0)) -> 29 | C124: =+PROPER(TEXT(Base[[#This Row],[FECHA]],"MMMM")) -> Febrero | D124: =+YEAR(Base[[#This Row],[FECHA]]) -> 2020 | E124: Tumbaco | F124: 5 estrellas | G124: Hostería | H124: 7 | I124: 5247.36 | J124: =Base[[#This Row],[VENTAS POR ALOJAMIENTO DURANTE EL MES DE LA ENCUESTA]]/1000 -> 5.24736 | K124: 53 | R124: 4
A125: 2020-02-01 | B125: =DAY(EOMONTH(Base[[#This Row],[FECHA]],0)) -> 29 | C125: =+PROPER(TEXT(Base[[#This Row],[FECHA]],"MMMM")) -> Febrero | D125: =+YEAR(Base[[#This Row],[FECHA]]) -> 2020 | E125: La Mariscal | F125: 3 estrellas | G125: Hotel | H125: 40 | I125: 2097 | J125: =Base[[#This Row],[VENTAS POR ALOJAMIENTO DURANTE EL MES DE LA ENCUESTA]]/1000 -> 2.097 | K125: 40 | L125: 2 | M125: 17 | N125: 19 | O125: 4 | P125: 36 | Q125: 40 | R125: 2
A126: 2020-02-01 | B126: =DAY(EOMONTH(Base[[#This Row],[FECHA]],0)) -> 29 | C126: =+PROPER(TEXT(Base[[#This Row],[FECHA]],"MMMM")) -> Febrero | D126: =+YEAR(Base[[#This Row],[FECHA]]) -> 2020 | E126: Eugenio Espejo | F126: 4 estrellas | G126: Hotel | H126: 25 | I126: 8550 | J126: =Base[[#This Row],[VENTAS POR ALOJAMIENTO DURANTE EL MES DE LA ENCUESTA]]/1000 -> 8.55 | K126: 58 | L126: 10 | M126: 35 | N126: 45 | O126: 167 | P126: 45 | Q126: 212 | R126: 0
A127: 2020-02-01 | B127: =DAY(EOMONTH(Base[[#This Row],[FECHA]],0)) -> 29 | C127: =+PROPER(TEXT(Base[[#This Row],[FECHA]],"MMMM")) -> Febrero | D127: =+YEAR(Base[[#This Row],[FECHA]]) -> 2020 | E127: Eugenio Espejo | F127: 3 estrellas | G127: Hostería | H127: 17 | I127: 0 | L127: 0 | O127: 0 | R127: 2
A128: 2020-02-01 | B128: =DAY(EOMONTH(Base[[#This Row],[FECHA]],0)) -> 29 | C128: =+PROPER(TEXT(Base[[#This Row],[FECHA]],"MMMM")) -> Febrero | D128: =+YEAR(Base[[#This Row],[FECHA]]) -> 2020 | E128: Tumbaco | F128: 5 estrellas | G128: Lodge | H128: 203 | I128: 5361 | J128: =Base[[#This Row],[VENTAS POR ALOJAMIENTO DURANTE EL MES DE LA ENCUESTA]]/1000 -> 5.361 | K128: 35 | L128: 67 | M128: 18 | N128: 85 | O128: 67 | P128: 24 | Q128: 91 | R128: 9
A129: 2020-02-01 | B129: =DAY(EOMONTH(Base[[#This Row],[FECHA]],0)) -> 29 | C129: =+PROPER(TEXT(Base[[#This Row],[FECHA]],"MMMM")) -> Febrero | D129: =+YEAR(Base[[#This Row],[FECHA]]) -> 2020 | E129: Manuela Sáenz | F129: 4 estrellas | G129: Hotel | H129: 15 | K129: 150 | L129: 16 | M129: 262 | N129: 278 | O129: 16 | P129: 262 | Q129: 278 | R129: 8
A130: 2020-02-01 | B130: =DAY(EOMONTH(Base[[#This Row],[FECHA]],0)) -> 29 | C130: =+PROPER(TEXT(Base[[#This Row],[FECHA]],"MMMM")) -> Febrero | D130: =+YEAR(Base[[#This Row],[FECHA]]) -> 2020 | E130: Eugenio Espejo | F130: 4 estrellas | G130: Hotel | H130: 152 | I130: 209547 | J130: =Base[[#This Row],[VENTAS POR ALOJAMIENTO DURANTE EL MES DE LA ENCUESTA]]/1000 -> 209.547 | K130: 3133 | L130: 1177 | M130: 811 | N130: 1988 | O130: 1177 | P130: 811 | Q130: 1988 | R130: 1
A131: 2020-02-01 | B131: =DAY(EOMONTH(Base[[#This Row],[FECHA]],0)) -> 29 | C131: =+PROPER(TEXT(Base[[#This Row],[FECHA]],"MMMM")) -> Febrero | D131: =+YEAR(Base[[#This Row],[FECHA]]) -> 2020 | E131: Manuela Sáenz | F131: 4 estrellas | G131: Hotel | H131: 982 | I131: 55076.55 | J131: =Base[[#This Row],[VENTAS POR ALOJAMIENTO DURANTE EL MES DE LA ENCUESTA]]/1000 -> 55.07655 | K131: 550 | L131: 0 | M131: 1163 | N131: 1163 | O131: 0 | P131: 1163 | Q131: 1163 | R131: 48
A132: 2020-02-01 | B132: =DAY(EOMONTH(Base[[#This Row],[FECHA]],0)) -> 29 | C132: =+PROPER(TEXT(Base[[#This Row],[FECHA]],"MMMM")) -> Febrero | D132: =+YEAR(Base[[#This Row],[FECHA]]) -> 2020 | E132: La Mariscal | F132: 4 estrellas | G132: Hotel | H132: 44 | I132: 35038 | J132: =Base[[#This Row],[VENTAS POR ALOJAMIENTO DURANTE EL MES DE LA ENCUESTA]]/1000 -> 35.038 | K132: 571 | L132: 52 | M132: 903 | N132: 955 | O132: 52 | P132: 903 | Q132: 955 | R132: 18
A133: 2020-02-01 | B133: =DAY(EOMONTH(Base[[#This Row],[FECHA]],0)) -> 29 | C133: =+PROPER(TEXT(Base[[#This Row],[FECHA]],"MMMM")) -> Febrero | D133: =+YEAR(Base[[#This Row],[FECHA]]) -> 2020 | E133: La Delicia | F133: 4 estrellas | G133: Hostería | H133: 9 | I133: 596 | J133: =Base[[#This Row],[VENTAS POR ALOJAMIENTO DURANTE EL MES DE LA ENCUESTA]]/1000 -> 0.596 | K133: 40 | L133: 40 | M133: 0 | N133: 40 | O133: 40 | P133: 0 | Q133: 40 | R133: 6
A134: 2020-02-01 | B134: =DAY(EOMONTH(Base[[#This Row],[FECHA]],0)) -> 29 | C134: =+PROPER(TEXT(Base[[#This Row],[FECHA]],"MMMM")) -> Febrero | D134: =+YEAR(Base[[#This Row],[FECHA]]) -> 2020 | E134: Eugenio Espejo | F134: 4 estrellas | G134: Hotel | H134: 30 | I134: 76219.67 | J134: =Base[[#This Row],[VENTAS POR ALOJAMIENTO DURANTE EL MES DE LA ENCUESTA]]/1000 -> 76.21967 | K134: 671 | L134: 133 | M134: 806 | N134: 939 | O134: 133 | P134: 806 | Q134: 939 | R134: 0
A135: 2020-02-01 | B135: =DAY(EOMONTH(Base[[#This Row],[FECHA]],0)) -> 29 | C135: =+PROPER(TEXT(Base[[#This Row],[FECHA]],"MMMM")) -> Febrero | D135: =+YEAR(Base[[#This Row],[FECHA]]) -> 2020 | E135: Los Chillos | F135: 4 estrellas | G135: Hostería | H135: 10 | I135: 1338.3 | J135: =Base[[#This Row],[VENTAS POR ALOJAMIENTO DURANTE EL MES DE LA ENCUESTA]]/1000 -> 1.3383 | K135: 18 | L135: 36 | M135: 0 | N135: 36 | O135: 36 | P135: 0 | Q135: 36 | R135: 9
A136: 2020-02-01 | B136: =DAY(EOMONTH(Base[[#This Row],[FECHA]],0)) -> 29 | C136: =+PROPER(TEXT(Base[[#This Row],[FECHA]],"MMMM")) -> Febrero | D136: =+YEAR(Base[[#This Row],[FECHA]]) -> 2020 | E136: La Mariscal | F136: 4 estrellas | G136: Hotel | I136: 121353.66 | J136: =Base[[#This Row],[VENTAS POR ALOJAMIENTO DURANTE EL MES DE LA ENCUESTA]]/1000 -> 121.35366 | K136: 1004 | L136: 1187 | M136: 302 | N136: 1489 | O136: 1187 | P136: 302 | Q136: 1489 | R136: 76
A137: 2020-02-01 | B137: =DAY(EOMONTH(Base[[#This Row],[FECHA]],0)) -> 29 | C137: =+PROPER(TEXT(Base[[#This Row],[FECHA]],"MMMM")) -> Febrero | D137: =+YEAR(Base[[#This Row],[FECHA]]) -> 2020 | E137: La Delicia | F137: 3 estrellas | G137: Lodge | H137: 360 | I137: 14539 | J137: =Base[[#This Row],[VENTAS POR ALOJAMIENTO DURANTE EL MES DE LA ENCUESTA]]/1000 -> 14.539 | K137: 99 | L137: 10 | M137: 30 | N137: 40 | O137: 35 | P137: 124 | Q137: 159 | R137: 0
A138: 2020-02-01 | B138: =DAY(EOMONTH(Base[[#This Row],[FECHA]],0)) -> 29 | C138: =+PROPER(TEXT(Base[[#This Row],[FECHA]],"MMMM")) -> Febrero | D138: =+YEAR(Base[[#This Row],[FECHA]]) -> 2020 | E138: Manuela Sáenz | F138: 3 estrellas | G138: Hotel | H138: 6 | I138: 11840 | J138: =Base[[#This Row],[VENTAS POR ALOJAMIENTO DURANTE EL MES DE LA ENCUESTA]]/1000 -> 11.84 | K138: 66 | L138: 0 | M138: 132 | N138: 132 | O138: 0 | P138: 132 | Q138: 132 | R138: 6
A139: 2020-02-01 | B139: =DAY(EOMONTH(Base[[#This Row],[FECHA]],0)) -> 29 | C139: =+PROPER(TEXT(Base[[#This Row],[FECHA]],"MMMM")) -> Febrero | D139: =+YEAR(Base[[#This Row],[FECHA]]) -> 2020 | E139: Tumbaco | F139: 3 estrellas | G139: Hacienda Turística | H139: 21 | I139: 0 | R139: 2
A140: 2020-03-01 | B140: =DAY(EOMONTH(Base[[#This Row],[FECHA]],0)) -> 31 | C140: =+PROPER(TEXT(Base[[#This Row],[FECHA]],"MMMM")) -> Marzo | D140: =+YEAR(Base[[#This Row],[FECHA]]) -> 2020 | E140: La Mariscal | F140: 3 estrellas | G140: Hotel | H140: 1200 | I140: 3200 | J140: =Base[[#This Row],[VENTAS POR ALOJAMIENTO DURANTE EL MES DE LA ENCUESTA]]/1000 -> 3.2 | K140: 107 | L140: 71 | M140: 7 | N140: 78 | O140: 94 | P140: 7 | Q140: 101 | R140: 9
A141: 2020-03-01 | B141: =DAY(EOMONTH(Base[[#This Row],[FECHA]],0)) -> 31 | C141: =+PROPER(TEXT(Base[[#This Row],[FECHA]],"MMMM")) -> Marzo | D141: =+YEAR(Base[[#This Row],[FECHA]]) -> 2020 | E141: Eugenio Espejo | F141: 4 estrellas | G141: Hotel | H141: 128 | I141: 62709 | J141: =Base[[#This Row],[VENTAS POR ALOJAMIENTO DURANTE EL MES DE LA ENCUESTA]]/1000 -> 62.709 | K141: 946 | L141: 488 | M141: 460 | N141: 948 | O141: 488 | P141: 460 | Q141: 948 | R141: 0
A142: 2020-03-01 | B142: =DAY(EOMONTH(Base[[#This Row],[FECHA]],0)) -> 31 | C142: =+PROPER(TEXT(Base[[#This Row],[FECHA]],"MMMM")) -> Marzo | D142: =+YEAR(Base[[#This Row],[FECHA]]) -> 2020 | E142: La Delicia | F142: 3 estrellas | G142: Hostería | H142: 14 | I142: 290 | J142: =Base[[#This Row],[VENTAS POR ALOJAMIENTO DURANTE EL MES DE LA ENCUESTA]]/1000 -> 0.29 | K142: 2 | L142: 2 | M142: 0 | N142: 2 | O142: 12 | P142: 0 | Q142: 12 | R142: 7
A143: 2020-03-01 | B143: =DAY(EOMONTH(Base[[#This Row],[FECHA]],0)) -> 31 | C143: =+PROPER(TEXT(Base[[#This Row],[FECHA]],"MMMM")) -> Marzo | D143: =+YEAR(Base[[#This Row],[FECHA]]) -> 2020 | E143: La Mariscal | F143: 3 estrellas | G143: Hotel | H143: 20 | I143: 4900 | J143: =Base[[#This Row],[VENTAS POR ALOJAMIENTO DURANTE EL MES DE LA ENCUESTA]]/1000 -> 4.9 | K143: 7 | L143: 0 | M143: 7 | N143: 7 | O143: 7 | P143: 7 | Q143: 14 | R143: 14
A144: 2020-03-01 | B144: =DAY(EOMONTH(Base[[#This Row],[FECHA]],0)) -> 31 | C144: =+PROPER(TEXT(Base[[#This Row],[FECHA]],"MMMM")) -> Marzo | D144: =+YEAR(Base[[#This Row],[FECHA]]) -> 2020 | E144: La Mariscal | F144: 3 estrellas | G144: Hotel | H144: 9 | I144: 90 | J144: =Base[[#This Row],[VENTAS POR ALOJAMIENTO DURANTE EL MES DE LA ENCUESTA]]/1000 -> 0.09 | K144: 3 | L144: 0 | M144: 3 | N144: 3 | O144: 3 | P144: 3 | Q144: 6 | R144: 6
A145: 2020-03-01 | B145: =DAY(EOMONTH(Base[[#This Row],[FECHA]],0)) -> 31 | C145: =+PROPER(TEXT(Base[[#This Row],[FECHA]],"MMMM")) -> Marzo | D145: =+YEAR(Base[[#This Row],[FECHA]]) -> 2020 | E145: Manuela Sáenz | F145: 4 estrellas | G145: Hotel | H145: 360 | I145: 4498.55 | J145: =Base[[#This Row],[VENTAS POR ALOJAMIENTO DURANTE EL MES DE LA ENCUESTA]]/1000 -> 4.49855 | K145: 29 | L145: 0 | M145: 66 | N145: 66 | O145: 0 | P145: 66 | Q145: 66 | R145: 8
A146: 2020-03-01 | B146: =DAY(EOMONTH(Base[[#This Row],[FECHA]],0)) -> 31 | C146: =+PROPER(TEXT(Base[[#This Row],[FECHA]],"MMMM")) -> Marzo | D146: =+YEAR(Base[[#This Row],[FECHA]]) -> 2020 | E146: Eugenio Espejo | F146: 3 estrellas | G146: Hostal | H146: 10 | I146: 6184 | J146: =Base[[#This Row],[VENTAS POR ALOJAMIENTO DURANTE EL MES DE LA ENCUESTA]]/1000 -> 6.184 | K146: 87 | L146: 0 | M146: 187 | N146: 187 | O146: 0 | P146: 187 | Q146: 187 | R146: 6
A147: 2020-03-01 | B147: =DAY(EOMONTH(Base[[#This Row],[FECHA]],0)) -> 31 | C147: =+PROPER(TEXT(Base[[#This Row],[FECHA]],"MMMM")) -> Marzo | D147: =+YEAR(Base[[#This Row],[FECHA]]) -> 2020 | E147: La Mariscal | F147: 3 estrellas | G147: Hotel | H147: 306 | I147: 216 | J147: =Base[[#This Row],[VENTAS POR ALOJAMIENTO DURANTE EL MES DE LA ENCUESTA]]/1000 -> 0.216 | K147: 4 | L147: 1 | M147: 3 | N147: 4 | O147: 1 | P147: 3 | Q147: 4 | R147: 2
A148: 2020-03-01 | B148: =DAY(EOMONTH(Base[[#This Row],[FECHA]],0)) -> 31 | C148: =+PROPER(TEXT(Base[[#This Row],[FECHA]],"MMMM")) -> Marzo | D148: =+YEAR(Base[[#This Row],[FECHA]]) -> 2020 | E148: La Mariscal | F148: 3 estrellas | G148: Hotel | H148: 600 | I148: 8190 | J148: =Base[[#This Row],[VENTAS POR ALOJAMIENTO DURANTE EL MES DE LA ENCUESTA]]/1000 -> 8.19 | K148: 167 | L148: 3 | M148: 141 | N148: 144 | O148: 8 | P148: 231 | Q148: 239 | R148: 8
A149: 2020-03-01 | B149: =DAY(EOMONTH(Base[[#This Row],[FECHA]],0)) -> 31 | C149: =+PROPER(TEXT(Base[[#This Row],[FECHA]],"MMMM")) -> Marzo | D149: =+YEAR(Base[[#This Row],[FECHA]]) -> 2020 | E149: Eugenio Espejo | F149: 4 estrellas | G149: Hotel | H149: 24 | I149: 1500 | J149: =Base[[#This Row],[VENTAS POR ALOJAMIENTO DURANTE EL MES DE LA ENCUESTA]]/1000 -> 1.5 | K149: 9 | L149: 2 | M149: 10 | N149: 12 | O149: 2 | P149: 10 | Q149: 12 | R149: 0
A150: 2020-03-01 | B150: =DAY(EOMONTH(Base[[#This Row],[FECHA]],0)) -> 31 | C150: =+PROPER(TEXT(Base[[#This Row],[FECHA]],"MMMM")) -> Marzo | D150: =+YEAR(Base[[#This Row],[FECHA]]) -> 2020 | E150: Tumbaco | F150: 5 estrellas | G150: Lodge | H150: 217 | I150: 2331.92 | J150: =Base[[#This Row],[VENTAS POR ALOJAMIENTO DURANTE EL MES DE LA ENCUESTA]]/1000 -> 2.33192 | K150: 20 | L150: 18 | M150: 9 | N150: 27 | O150: 30 | P150: 13 | Q150: 43 | R150: 8
A151: 2020-03-01 | B151: =DAY(EOMONTH(Base[[#This Row],[FECHA]],0)) -> 31 | C151: =+PROPER(TEXT(Base[[#This Row],[FECHA]],"MMMM")) -> Marzo | D151: =+YEAR(Base[[#This Row],[FECHA]]) -> 2020 | E151: La Mariscal | F151: 4 estrellas | G151: Hotel | H151: 4371 | I151: 100393.94 | J151: =Base[[#This Row],[VENTAS POR ALOJAMIENTO DURANTE EL MES DE LA ENCUESTA]]/1000 -> 100.39394 | K151: 1136 | L151: 556 | M151: 883 | N151: 1439 | O151: 556 | P151: 883 | Q151: 1439 | R151: 56
A152: 2020-03-01 | B152: =DAY(EOMONTH(Base[[#This Row],[FECHA]],0)) -> 31 | C152: =+PROPER(TEXT(Base[[#This Row],[FECHA]],"MMMM")) -> Marzo | D152: =+YEAR(Base[[#This Row],[FECHA]]) -> 2020 | E152: Tumbaco | F152: 3 estrellas | G152: Hostería | H152: 6 | I152: 0 | L152: 0 | M152: 0 | O152: 0 | P152: 0 | R152: 2
A153: 2020-03-01 | B153: =DAY(EOMONTH(Base[[#This Row],[FECHA]],0)) -> 31 | C153: =+PROPER(TEXT(Base[[#This Row],[FECHA]],"MMMM")) -> Marzo | D153: =+YEAR(Base[[#This Row],[FECHA]]) -> 2020 | E153: La Mariscal | F153: 3 estrellas | G153: Hotel | H153: 40 | I153: 10600.34 | J153: =Base[[#This Row],[VENTAS POR ALOJAMIENTO DURANTE EL MES DE LA ENCUESTA]]/1000 -> 10.60034 | K153: 176 | L153: 22 | M153: 154 | N153: 176 | O153: 161 | P153: 154 | Q153: 315 | R153: 25
A154: 2020-03-01 | B154: =DAY(EOMONTH(Base[[#This Row],[FECHA]],0)) -> 31 | C154: =+PROPER(TEXT(Base[[#This Row],[FECHA]],"MMMM")) -> Marzo | D154: =+YEAR(Base[[#This Row],[FECHA]]) -> 2020 | E154: Manuela Sáenz | F154: 5 estrellas | G154: Hotel | H154: 780 | I154: 6900 | J154: =Base[[#This Row],[VENTAS POR ALOJAMIENTO DURANTE EL MES DE LA ENCUESTA]]/1000 -> 6.9 | K154: 88 | L154: 8 | M154: 80 | N154: 88 | O154: 8 | P154: 80 | Q154: 88 | R154: 19
A155: 2020-03-01 | B155: =DAY(EOMONTH(Base[[#This Row],[FECHA]],0)) -> 31 | C155: =+PROPER(TEXT(Base[[#This Row],[FECHA]],"MMMM")) -> Marzo | D155: =+YEAR(Base[[#This Row],[FECHA]]) -> 2020 | E155: La Mariscal | F155: 4 estrellas | G155: Hotel | H155: 55 | I155: 45000 | J155: =Base[[#This Row],[VENTAS POR ALOJAMIENTO DURANTE EL MES DE LA ENCUESTA]]/1000 -> 45 | K155: 241 | L155: 300 | M155: 12 | N155: 312 | O155: 700 | P155: 113 | Q155: 813 | R155: 17
A156: 2020-03-01 | B156: =DAY(EOMONTH(Base[[#This Row],[FECHA]],0)) -> 31 | C156: =+PROPER(TEXT(Base[[#This Row],[FECHA]],"MMMM")) -> Marzo | D156: =+YEAR(Base[[#This Row],[FECHA]]) -> 2020 | E156: Manuela Sáenz | F156: 3 estrellas | G156: Hotel | H156: 186 | I156: 6913 | J156: =Base[[#This Row],[VENTAS POR ALOJAMIENTO DURANTE EL MES DE LA ENCUESTA]]/1000 -> 6.913 | K156: 46 | L156: 0 | M156: 73 | N156: 73 | O156: 0 | P156: 73 | Q156: 73 | R156: 7
A157: 2020-03-01 | B157: =DAY(EOMONTH(Base[[#This Row],[FECHA]],0)) -> 31 | C157: =+PROPER(TEXT(Base[[#This Row],[FECHA]],"MMMM")) -> Marzo | D157: =+YEAR(Base[[#This Row],[FECHA]]) -> 2020 | E157: La Delicia | F157: 4 estrellas | G157: Hostería | H157: 20 | I157: 0 | L157: 0 | M157: 0 | O157: 0 | P157: 0 | R157: 5
A158: 2020-03-01 | B158: =DAY(EOMONTH(Base[[#This Row],[FECHA]],0)) -> 31 | C158: =+PROPER(TEXT(Base[[#This Row],[FECHA]],"MMMM")) -> Marzo | D158: =+YEAR(Base[[#This Row],[FECHA]]) -> 2020 | E158: Eugenio Espejo | F158: 3 estrellas | G158: Hostería | H158: 5 | I158: 0 | L158: 0 | M158: 0 | O158: 0 | P158: 0 | R158: 3
A159: 2020-03-01 | B159: =DAY(EOMONTH(Base[[#This Row],[FECHA]],0)) -> 31 | C159: =+PROPER(TEXT(Base[[#This Row],[FECHA]],"MMMM")) -> Marzo | D159: =+YEAR(Base[[#This Row],[FECHA]]) -> 2020 | E159: Los Chillos | F159: 4 estrellas | G159: Hostería | H159: 10 | I159: 526.14 | J159: =Base[[#This Row],[VENTAS POR ALOJAMIENTO DURANTE EL MES DE LA ENCUESTA]]/1000 -> 0.52614 | K159: 8 | L159: 15 | M159: 0 | N159: 15 | O159: 15 | P159: 3 | Q159: 18 | R159: 7
A160: 2020-03-01 | B160: =DAY(EOMONTH(Base[[#This Row],[FECHA]],0)) -> 31 | C160: =+PROPER(TEXT(Base[[#This Row],[FECHA]],"MMMM")) -> Marzo | D160: =+YEAR(Base[[#This Row],[FECHA]]) -> 2020 | E160: La Mariscal | F160: 4 estrellas | G160: Hotel | H160: 1951 | I160: 37870 | J160: =Base[[#This Row],[VENTAS POR ALOJAMIENTO DURANTE EL MES DE LA ENCUESTA]]/1000 -> 37.87 | K160: 715 | L160: 757 | M160: 291 | N160: 1048 | O160: 757 | P160: 291 | Q160: 1048 | R160: 73
A161: 2020-03-01 | B161: =DAY(EOMONTH(Base[[#This Row],[FECHA]],0)) -> 31 | C161: =+PROPER(TEXT(Base[[#This Row],[FECHA]],"MMMM")) -> Marzo | D161: =+YEAR(Base[[#This Row],[FECHA]]) -> 2020 | E161: Eugenio Espejo | F161: 3 estrellas | G161: Hostería | H161: 20 | I161: 25000 | J161: =Base[[#This Row],[VENTAS POR ALOJAMIENTO DURANTE EL MES DE LA ENCUESTA]]/1000 -> 25 | K161: 21 | L161: 0 | M161: 26 | N161: 26 | O161: 0 | P161: 42 | Q161: 42 | R161: 13
A162: 2020-03-01 | B162: =DAY(EOMONTH(Base[[#This Row],[FECHA]],0)) -> 31 | C162: =+PROPER(TEXT(Base[[#This Row],[FECHA]],"MMMM")) -> Marzo | D162: =+YEAR(Base[[#This Row],[FECHA]]) -> 2020 | E162: La Mariscal | F162: 3 estrellas | G162: Hostal | H162: 25 | I162: 0 | K162: 0 | L162: 0 | M162: 0 | N162: 0 | O162: 0 | P162: 0 | R162: 0
A163: 2020-04-01 | B163: =DAY(EOMONTH(Base[[#This Row],[FECHA]],0)) -> 30 | C163: =+PROPER(TEXT(Base[[#This Row],[FECHA]],"MMMM")) -> Abril | D163: =+YEAR(Base[[#This Row],[FECHA]]) -> 2020 | E163: La Mariscal | F163: 3 estrellas | G163: Hotel | H163: 1200 | I163: 0 | K163: 0 | L163: 0 | M163: 0 | N163: 0 | O163: 0 | P163: 0 | R163: 9
A164: 2020-04-01 | B164: =DAY(EOMONTH(Base[[#This Row],[FECHA]],0)) -> 30 | C164: =+PROPER(TEXT(Base[[#This Row],[FECHA]],"MMMM")) -> Abril | D164: =+YEAR(Base[[#This Row],[FECHA]]) -> 2020 | E164: Eugenio Espejo | F164: 4 estrellas | G164: Hotel | H164: 128 | I164: 15915 | J164: =Base[[#This Row],[VENTAS POR ALOJAMIENTO DURANTE EL MES DE LA ENCUESTA]]/1000 -> 15.915 | K164: 207 | L164: 11 | M164: 0 | N164: 11 | O164: 23 | P164: 0 | Q164: 23 | R164: 76
A165: 2020-04-01 | B165: =DAY(EOMONTH(Base[[#This Row],[FECHA]],0)) -> 30 | C165: =+PROPER(TEXT(Base[[#This Row],[FECHA]],"MMMM")) -> Abril | D165: =+YEAR(Base[[#This Row],[FECHA]]) -> 2020 | E165: La Delicia | F165: 3 estrellas | G165: Hostería | H165: 12 | I165: 0 | L165: 0 | M165: 0 | O165: 0 | P165: 0 | R165: 6
A166: 2020-04-01 | B166: =DAY(EOMONTH(Base[[#This Row],[FECHA]],0)) -> 30 | C166: =+PROPER(TEXT(Base[[#This Row],[FECHA]],"MMMM")) -> Abril | D166: =+YEAR(Base[[#This Row],[FECHA]]) -> 2020 | E166: Eugenio Espejo | F166: 3 estrellas | G166: Hotel | H166: 12 | I166: 0 | L166: 0 | M166: 0 | O166: 0 | P166: 0 | R166: 3
A167: 2020-04-01 | B167: =DAY(EOMONTH(Base[[#This Row],[FECHA]],0)) -> 30 | C167: =+PROPER(TEXT(Base[[#This Row],[FECHA]],"MMMM")) -> Abril | D167: =+YEAR(Base[[#This Row],[FECHA]]) -> 2020 | E167: Manuela Sáenz | F167: 4 estrellas | G167: Hotel | H167: 360 | I167: 0 | L167: 0 | M167: 0 | O167: 0 | P167: 0 | R167: 6
A168: 2020-04-01 | B168: =DAY(EOMONTH(Base[[#This Row],[FECHA]],0)) -> 30 | C168: =+PROPER(TEXT(Base[[#This Row],[FECHA]],"MMMM")) -> Abril | D168: =+YEAR(Base[[#This Row],[FECHA]]) -> 2020 | E168: Tumbaco | F168: 5 estrellas | G168: Hostería | H168: 7 | I168: 0 | L168: 0 | M168: 0 | O168: 0 | P168: 0 | R168: 1
A169: 2020-04-01 | B169: =DAY(EOMONTH(Base[[#This Row],[FECHA]],0)) -> 30 | C169: =+PROPER(TEXT(Base[[#This Row],[FECHA]],"MMMM")) -> Abril | D169: =+YEAR(Base[[#This Row],[FECHA]]) -> 2020 | E169: La Mariscal | F169: 3 estrellas | G169: Hotel | H169: 0 | I169: 0 | K169: 0 | L169: 0 | M169: 0 | N169: 0 | O169: 0 | P169: 0 | R169: 3
A170: 2020-04-01 | B170: =DAY(EOMONTH(Base[[#This Row],[FECHA]],0)) -> 30 | C170: =+PROPER(TEXT(Base[[#This Row],[FECHA]],"MMMM")) -> Abril | D170: =+YEAR(Base[[#This Row],[FECHA]]) -> 2020 | E170: La Mariscal | F170: 3 estrellas | G170: Hotel | H170: 20 | I170: 0 | K170: 0 | L170: 0 | M170: 0 | N170: 0 | O170: 0 | P170: 0 | R170: 8
A171: 2020-04-01 | B171: =DAY(EOMONTH(Base[[#This Row],[FECHA]],0)) -> 30 | C171: =+PROPER(TEXT(Base[[#This Row],[FECHA]],"MMMM")) -> Abril | D171: =+YEAR(Base[[#This Row],[FECHA]]) -> 2020 | E171: Tumbaco | F171: 5 estrellas | G171: Hotel | H171: 94 | I171: 0 | L171: 84 | M171: 0 | N171: 84 | O171: 84 | P171: 0 | Q171: 84 | R171: 43
A172: 2020-04-01 | B172: =DAY(EOMONTH(Base[[#This Row],[FECHA]],0)) -> 30 | C172: =+PROPER(TEXT(Base[[#This Row],[FECHA]],"MMMM")) -> Abril | D172: =+YEAR(Base[[#This Row],[FECHA]]) -> 2020 | E172: Manuela Sáenz | F172: 4 estrellas | G172: Hotel | H172: 960 | I172: 0 | L172: 0 | M172: 0 | O172: 0 | P172: 0 | R172: 46
A173: 2020-04-01 | B173: =DAY(EOMONTH(Base[[#This Row],[FECHA]],0)) -> 30 | C173: =+PROPER(TEXT(Base[[#This Row],[FECHA]],"MMMM")) -> Abril | D173: =+YEAR(Base[[#This Row],[FECHA]]) -> 2020 | E173: Eugenio Espejo | F173: 4 estrellas | G173: Hotel | H173: 24 | I173: 0 | L173: 0 | M173: 0 | O173: 0 | P173: 0 | R173: 0
A174: 2020-04-01 | B174: =DAY(EOMONTH(Base[[#This Row],[FECHA]],0)) -> 30 | C174: =+PROPER(TEXT(Base[[#This Row],[FECHA]],"MMMM")) -> Abril | D174: =+YEAR(Base[[#This Row],[FECHA]]) -> 2020 | E174: Tumbaco | F174: 5 estrellas | G174: Lodge | H174: 210 | I174: 0 | L174: 0 | M174: 0 | O174: 0 | P174: 0 | R174: 3
A175: 2020-04-01 | B175: =DAY(EOMONTH(Base[[#This Row],[FECHA]],0)) -> 30 | C175: =+PROPER(TEXT(Base[[#This Row],[FECHA]],"MMMM")) -> Abril | D175: =+YEAR(Base[[#This Row],[FECHA]]) -> 2020 | E175: Tumbaco | F175: 3 estrellas | G175: Hostería | H175: 6 | I175: 0 | L175: 0 | M175: 0 | O175: 0 | P175: 0 | R175: 2
A176: 2020-04-01 | B176: =DAY(EOMONTH(Base[[#This Row],[FECHA]],0)) -> 30 | C176: =+PROPER(TEXT(Base[[#This Row],[FECHA]],"MMMM")) -> Abril | D176: =+YEAR(Base[[#This Row],[FECHA]]) -> 2020 | E176: La Mariscal | F176: 3 estrellas | G176: Hotel | H176: 40 | I176: 15960 | J176: =Base[[#This Row],[VENTAS POR ALOJAMIENTO DURANTE EL MES DE LA ENCUESTA]]/1000 -> 15.96 | K176: 403 | L176: 0 | M176: 300 | N176: 300 | O176: 0 | P176: 410 | Q176: 410 | R176: 20
A177: 2020-04-01 | B177: =DAY(EOMONTH(Base[[#This Row],[FECHA]],0)) -> 30 | C177: =+PROPER(TEXT(Base[[#This Row],[FECHA]],"MMMM")) -> Abril | D177: =+YEAR(Base[[#This Row],[FECHA]]) -> 2020 | E177: Eugenio Espejo | F177: 4 estrellas | G177: Hotel | H177: 4560 | I177: 0 | L177: 0 | M177: 0 | O177: 0 | P177: 0 | R177: 0
A178: 2020-04-01 | B178: =DAY(EOMONTH(Base[[#This Row],[FECHA]],0)) -> 30 | C178: =+PROPER(TEXT(Base[[#This Row],[FECHA]],"MMMM")) -> Abril | D178: =+YEAR(Base[[#This Row],[FECHA]]) -> 2020 | E178: Los Chillos | F178: 4 estrellas | G178: Hostería | H178: 10 | I178: 35 | J178: =Base[[#This Row],[VENTAS POR ALOJAMIENTO DURANTE EL MES DE LA ENCUESTA]]/1000 -> 0.035 | K178: 1 | L178: 1 | M178: 0 | N178: 1 | O178: 1 | P178: 0 | Q178: 1 | R178: 2
A179: 2020-04-01 | B179: =DAY(EOMONTH(Base[[#This Row],[FECHA]],0)) -> 30 | C179: =+PROPER(TEXT(Base[[#This Row],[FECHA]],"MMMM")) -> Abril | D179: =+YEAR(Base[[#This Row],[FECHA]]) -> 2020 | E179: La Mariscal | F179: 4 estrellas | G179: Hotel | H179: 86 | I179: 308 | J179: =Base[[#This Row],[VENTAS POR ALOJAMIENTO DURANTE EL MES DE LA ENCUESTA]]/1000 -> 0.308 | K179: 6 | L179: 6 | M179: 0 | N179: 6 | O179: 6 | P179: 0 | Q179: 6 | R179: 69
A180: 2020-04-01 | B180: =DAY(EOMONTH(Base[[#This Row],[FECHA]],0)) -> 30 | C180: =+PROPER(TEXT(Base[[#This Row],[FECHA]],"MMMM")) -> Abril | D180: =+YEAR(Base[[#This Row],[FECHA]]) -> 2020 | E180: Eugenio Espejo | F180: 3 estrellas | G180: Hostería | H180: 20 | I180: 0 | L180: 0 | M180: 0 | O180: 0 | P180: 0 | R180: 11
A181: 2020-04-01 | B181: =DAY(EOMONTH(Base[[#This Row],[FECHA]],0)) -> 30 | C181: =+PROPER(TEXT(Base[[#This Row],[FECHA]],"MMMM")) -> Abril | D181: =+YEAR(Base[[#This Row],[FECHA]]) -> 2020 | E181: Manuela Sáenz | F181: 3 estrellas | G181: Hotel | H181: 180 | I181: 0 | L181: 0 | M181: 0 | O181: 0 | P181: 0 | R181: 6
A182: 2020-05-01 | B182: =DAY(EOMONTH(Base[[#This Row],[FECHA]],0)) -> 31 | C182: =+PROPER(TEXT(Base[[#This Row],[FECHA]],"MMMM")) -> Mayo | D182: =+YEAR(Base[[#This Row],[FECHA]]) -> 2020 | E182: Eugenio Espejo | F182: 3 estrellas | G182: Hostal | H182: 9 | I182: 799 | J182: =Base[[#This Row],[VENTAS POR ALOJAMIENTO DURANTE EL MES DE LA ENCUESTA]]/1000 -> 0.799 | K182: 14 | L182: 1 | M182: 1 | N182: 2 | O182: 14 | P182: 14 | Q182: 28 | R182: 6
A183: 2020-05-01 | B183: =DAY(EOMONTH(Base[[#This Row],[FECHA]],0)) -> 31 | C183: =+PROPER(TEXT(Base[[#This Row],[FECHA]],"MMMM")) -> Mayo | D183: =+YEAR(Base[[#This Row],[FECHA]]) -> 2020 | E183: Eugenio Espejo | F183: 3 estrellas | G183: Hotel | H183: 12 | I183: 8619 | J183: =Base[[#This Row],[VENTAS POR ALOJAMIENTO DURANTE EL MES DE LA ENCUESTA]]/1000 -> 8.619 | K183: 20 | L183: 31 | M183: 0 | N183: 31 | O183: 31 | P183: 0 | Q183: 31 | R183: 12
A184: 2020-05-01 | B184: =DAY(EOMONTH(Base[[#This Row],[FECHA]],0)) -> 31 | C184: =+PROPER(TEXT(Base[[#This Row],[FECHA]],"MMMM")) -> Mayo | D184: =+YEAR(Base[[#This Row],[FECHA]]) -> 2020 | E184: Eugenio Espejo | F184: 3 estrellas | G184: Hotel | H184: 12 | R184: 4
A185: 2020-05-01 | B185: =DAY(EOMONTH(Base[[#This Row],[FECHA]],0)) -> 31 | C185: =+PROPER(TEXT(Base[[#This Row],[FECHA]],"MMMM")) -> Mayo | D185: =+YEAR(Base[[#This Row],[FECHA]]) -> 2020 | E185: La Delicia | F185: 4 estrellas | G185: Lodge | H185: 17 | R185: 50
A186: 2020-05-01 | B186: =DAY(EOMONTH(Base[[#This Row],[FECHA]],0)) -> 31 | C186: =+PROPER(TEXT(Base[[#This Row],[FECHA]],"MMMM")) -> Mayo | D186: =+YEAR(Base[[#This Row],[FECHA]]) -> 2020 | E186: La Mariscal | F186: 3 estrellas | G186: Hotel | H186: 15 | I186: 3 | J186: =Base[[#This Row],[VENTAS POR ALOJAMIENTO DURANTE EL MES DE LA ENCUESTA]]/1000 -> 0.003 | K186: 104 | L186: 11 | M186: 0 | N186: 11 | O186: 78 | P186: 0 | Q186: 78 | R186: 28
A187: 2020-05-01 | B187: =DAY(EOMONTH(Base[[#This Row],[FECHA]],0)) -> 31 | C187: =+PROPER(TEXT(Base[[#This Row],[FECHA]],"MMMM")) -> Mayo | D187: =+YEAR(Base[[#This Row],[FECHA]]) -> 2020 | E187: Tumbaco | F187: 5 estrellas | G187: Hostería | H187: 7 | R187: 3
A188: 2020-05-01 | B188: =DAY(EOMONTH(Base[[#This Row],[FECHA]],0)) -> 31 | C188: =+PROPER(TEXT(Base[[#This Row],[FECHA]],"MMMM")) -> Mayo | D188: =+YEAR(Base[[#This Row],[FECHA]]) -> 2020 | E188: Manuela Sáenz | F188: 3 estrellas | G188: Hostal | H188: 6 | R188: 2
A189: 2020-05-01 | B189: =DAY(EOMONTH(Base[[#This Row],[FECHA]],0)) -> 31 | C189: =+PROPER(TEXT(Base[[#This Row],[FECHA]],"MMMM")) -> Mayo | D189: =+YEAR(Base[[#This Row],[FECHA]]) -> 2020 | E189: La Mariscal | F189: 3 estrellas | G189: Hotel | H189: 1 | N189: 0 | R189: 2
A190: 2020-05-01 | B190: =DAY(EOMONTH(Base[[#This Row],[FECHA]],0)) -> 31 | C190: =+PROPER(TEXT(Base[[#This Row],[FECHA]],"MMMM")) -> Mayo | D190: =+YEAR(Base[[#This Row],[FECHA]]) -> 2020 | E190: La Mariscal | F190: 3 estrellas | G190: Hotel | H190: 0 | N190: 0 | R190: 7
A191: 2020-05-01 | B191: =DAY(EOMONTH(Base[[#This Row],[FECHA]],0)) -> 31 | C191: =+PROPER(TEXT(Base[[#This Row],[FECHA]],"MMMM")) -> Mayo | D191: =+YEAR(Base[[#This Row],[FECHA]]) -> 2020 | E191: Tumbaco | F191: 5 estrellas | G191: Hotel | H191: 94 | R191: 91
A192: 2020-05-01 | B192: =DAY(EOMONTH(Base[[#This Row],[FECHA]],0)) -> 31 | C192: =+PROPER(TEXT(Base[[#This Row],[FECHA]],"MMMM")) -> Mayo | D192: =+YEAR(Base[[#This Row],[FECHA]]) -> 2020 | E192: La Mariscal | F192: 3 estrellas | G192: Hotel | H192: 0 | N192: 0 | R192: 4
A193: 2020-05-01 | B193: =DAY(EOMONTH(Base[[#This Row],[FECHA]],0)) -> 31 | C193: =+PROPER(TEXT(Base[[#This Row],[FECHA]],"MMMM")) -> Mayo | D193: =+YEAR(Base[[#This Row],[FECHA]]) -> 2020 | E193: Tumbaco | F193: 5 estrellas | G193: Lodge | H193: 7 | R193: 5
A194: 2020-05-01 | B194: =DAY(EOMONTH(Base[[#This Row],[FECHA]],0)) -> 31 | C194: =+PROPER(TEXT(Base[[#This Row],[FECHA]],"MMMM")) -> Mayo | D194: =+YEAR(Base[[#This Row],[FECHA]]) -> 2020 | E194: La Mariscal | F194: 5 estrellas | G194: Hotel | H194: 255 | I194: 90180 | J194: =Base[[#This Row],[VENTAS POR ALOJAMIENTO DURANTE EL MES DE LA ENCUESTA]]/1000 -> 90.18 | K194: 1265 | L194: 191 | M194: 12 | N194: 203 | O194: 2690 | P194: 145 | Q194: 2835 | R194: 0
A195: 2020-05-01 | B195: =DAY(EOMONTH(Base[[#This Row],[FECHA]],0)) -> 31 | C195: =+PROPER(TEXT(Base[[#This Row],[FECHA]],"MMMM")) -> Mayo | D195: =+YEAR(Base[[#This Row],[FECHA]]) -> 2020 | E195: Tumbaco | F195: 3 estrellas | G195: Hostal | H195: 9 | R195: 0
A196: 2020-05-01 | B196: =DAY(EOMONTH(Base[[#This Row],[FECHA]],0)) -> 31 | C196: =+PROPER(TEXT(Base[[#This Row],[FECHA]],"MMMM")) -> Mayo | D196: =+YEAR(Base[[#This Row],[FECHA]]) -> 2020 | E196: La Delicia | F196: 3 estrellas | G196: Hostería | H196: 14 | R196: 11
A197: 2020-05-01 | B197: =DAY(EOMONTH(Base[[#This Row],[FECHA]],0)) -> 31 | C197: =+PROPER(TEXT(Base[[#This Row],[FECHA]],"MMMM")) -> Mayo | D197: =+YEAR(Base[[#This Row],[FECHA]]) -> 2020 | E197: Los Chillos | F197: 4 estrellas | G197: Hostería | H197: 10 | R197: 7
A198: 2020-05-01 | B198: =DAY(EOMONTH(Base[[#This Row],[FECHA]],0)) -> 31 | C198: =+PROPER(TEXT(Base[[#This Row],[FECHA]],"MMMM")) -> Mayo | D198: =+YEAR(Base[[#This Row],[FECHA]]) -> 2020 | E198: La Delicia | F198: 3 estrellas | G198: Hostería | H198: 8 | R198: 6
A199: 2020-05-01 | B199: =DAY(EOMONTH(Base[[#This Row],[FECHA]],0)) -> 31 | C199: =+PROPER(TEXT(Base[[#This Row],[FECHA]],"MMMM")) -> Mayo | D199: =+YEAR(Base[[#This Row],[FECHA]]) -> 2020 | E199: Eugenio Espejo | F199: 3 estrellas | G199: Hostería | H199: 14 | R199: 2
A200: 2020-05-01 | B200: =DAY(EOMONTH(Base[[#This Row],[FECHA]],0)) -> 31 | C200: =+PROPER(TEXT(Base[[#This Row],[FECHA]],"MMMM")) -> Mayo | D200: =+YEAR(Base[[#This Row],[FECHA]]) -> 2020 | E200: Los Chillos | F200: 4 estrellas | G200: Hostería | H200: 10 | R200: 3
... 272 more rows

Sheet RESUMEN (hidden)
A1: Fecha | B1: Categoria | C1: Pernoctaciones | D1: Habitaciones | E1: Empleos | F1: Llegadas | G1: Habitaciones vendidas | H1: Ingresos (Miles) | I1: Ingresos | J1: TOH | K1: Estancia media | L1: Tarifa promedio
A2: 43800 | B2: 3 estrellas | C2: 5040 | D2: 790 | E2: 277 | F2: 4069 | G2: 5474 | H2: 226.90933 | I2: 226909.33 | J2: 0.223519804 | K2: 1.238633571 | L2: 41.45219766
A3: 43800 | B3: 4 estrellas | C3: 10423 | D3: 825 | E3: 537 | F3: 7458 | G3: 9880 | H3: 773.37467 | I3: 773374.67 | J3: 0.3863147605 | K3: 1.397559667 | L3: 78.27678846
A4: 43800 | B4: 5 estrellas | C4: 11087 | D4: 580 | E4: 1203 | F4: 6411 | G4: 8916 | H4: 864.9625 | I4: 864962.5 | J4: 0.4958843159 | K4: 1.729371393 | L4: 97.01239345
A5: 43831 | B5: 3 estrellas | C5: 5103 | D5: 1039 | E5: 165 | F5: 1994 | G5: 2582 | H5: 134.78024 | I5: 134780.24 | J5: 0.08016392934 | K5: 2.559177533 | L5: 52.19993803
A6: 43831 | B6: 5 estrellas | C6: 15195 | D6: 779 | E6: 1128 | F6: 4744 | G6: 15281 | H6: 1701.39931 | I6: 1701399.31 | J6: 0.6327798253 | K6: 3.202993255 | L6: 111.3408357
A7: 43831 | B7: 4 estrellas | C7: 7578 | D7: 1275 | E7: 443 | F7: 6272 | G7: 5740 | H7: 438.66395 | I7: 438663.95 | J7: 0.1452245414 | K7: 1.208227041 | L7: 76.42229094
A8: 43862 | B8: 3 estrellas | C8: 345 | D8: 466 | E8: 26 | F8: 205 | G8: 257 | H8: 36.476 | I8: 36476 | J8: 0.01901731538 | K8: 1.682926829 | L8: 141.9299611
A9: 43862 | B9: 4 estrellas | C9: 7895 | D9: 1332 | E9: 234 | F9: 7580 | G9: 6613 | H9: 544.67818 | I9: 544678.18 | J9: 0.1711970591 | K9: 1.041556728 | L9: 82.36476334
A10: 43862 | B10: 5 estrellas | C10: 91 | D10: 210 | E10: 13 | F10: 85 | G10: 88 | H10: 10.60836 | I10: 10608.36 | J10: 0.0144499179 | K10: 1.070588235 | L10: 120.5495455
A11: 43891 | B11: 3 estrellas | C11: 993 | D11: 2441 | E11: 102 | F11: 700 | G11: 620 | H11: 65.58334 | I11: 65583.34 | J11: 0.008193363376 | K11: 1.418571429 | L11: 105.7795806
A12: 43891 | B12: 4 estrellas | C12: 4344 | D12: 6919 | E12: 166 | F12: 3840 | G12: 3084 | H12: 252.49763 | I12: 252497.63 | J12: 0.01437835973 | K12: 1.13125 | L12: 81.87342088
A13: 43891 | B13: 5 estrellas | C13: 131 | D13: 997 | E13: 27 | F13: 115 | G13: 108 | H13: 9.23192 | I13: 9231.92 | J13: 0.00349435403 | K13: 1.139130435 | L13: 85.48074074
A14: 43922 | B14: 3 estrellas | C14: 410 | D14: 1490 | E14: 68 | F14: 300 | G14: 403 | H14: 15.96 | I14: 15960 | J14: 0.009015659955 | K14: 1.366666667 | L14: 39.60297767
A15: 43922 | B15: 4 estrellas | C15: 30 | D15: 6128 | E15: 199 | F15: 18 | G15: 214 | H15: 16.258 | I15: 16258 | J15: 0.001164055701 | K15: 1.666666667 | L15: 75.97196262
A16: 43922 | B16: 5 estrellas | C16: 84 | D16: 311 | E16: 47 | F16: 84 | I16: 0 | K16: 1
A17: 43952 | B17: 3 estrellas | C17: 1164 | D17: 344 | E17: 202 | F17: 188 | G17: 1156 | H17: 54.63876 | I17: 54638.76 | J17: 0.1084021005 | K17: 6.191489362 | L17: 47.26536332
A18: 43952 | B18: 4 estrellas | C18: 1330 | D18: 348 | E18: 403 | F18: 1326 | G18: 1228 | H18: 56.529 | I18: 56529 | J18: 0.1138301817 | K18: 1.003016591 | L18: 46.03338762
A19: 43952 | B19: 5 estrellas | C19: 3093 | D19: 507 | E19: 141 | F19: 244 | G19: 1291 | H19: 90.18 | I19: 90180 | J19: 0.08214035757 | K19: 12.67622951 | L19: 69.85282727
A20: 43983 | B20: 3 estrellas | C20: 248 | D20: 171 | E20: 76 | F20: 120 | G20: 282 | H20: 14.59535 | I20: 14595.35 | J20: 0.05497076023 | K20: 2.066666667 | L20: 51.75656028
A21: 43983 | B21: 5 estrellas | C21: 805 | D21: 266 | E21: 50 | F21: 204 | G21: 805 | H21: 45.758 | I21: 45758 | J21: 0.100877193 | K21: 3.946078431 | L21: 56.84223602
A22: 43983 | B22: 4 estrellas | C22: 489 | D22: 595 | E22: 220 | F22: 461 | G22: 460 | H22: 25.9009 | I22: 25900.9 | J22: 0.02577030812 | K22: 1.060737527 | L22: 56.30630435
A23: 44013 | B23: 3 estrellas | C23: 341 | D23: 376 | E23: 99 | F23: 230 | G23: 212 | H23: 13.29202 | I23: 13292.02 | J23: 0.01818805765 | K23: 1.482608696 | L23: 62.69820755
A24: 44013 | B24: 4 estrellas | C24: 86 | D24: 299 | E24: 78 | F24: 86 | G24: 70 | H24: 4.291 | I24: 4291 | J24: 0.007552055238 | K24: 1 | L24: 61.3
A25: 44013 | B25: 5 estrellas | C25: 123 | D25: 101 | E25: 21 | F25: 122 | G25: 125 | H25: 10.19404 | I25: 10194.04 | J25: 0.03992334717 | K25: 1.008196721 | L25: 81.55232
A26: 44044 | B26: 3 estrellas | C26: 551 | D26: 305 | E26: 79 | F26: 406 | G26: 440 | H26: 22.31896 | I26: 22318.96 | J26: 0.04653622422 | K26: 1.357142857 | L26: 50.72490909
A27: 44044 | B27: 4 estrellas | C27: 26 | D27: 214 | E27: 35 | F27: 26 | G27: 26 | H27: 1.274 | I27: 1274 | J27: 0.0039192041 | K27: 1 | L27: 49
A28: 44044 | B28: 5 estrellas | C28: 1405 | D28: 222 | E28: 89 | F28: 1405 | G28: 1214 | H28: 127.03189 | I28: 127031.89 | J28: 0.1764022087 | K28: 1 | L28: 104.6391186
A29: 44075 | B29: 3 estrellas | C29: 503 | D29: 261 | E29: 61 | F29: 438 | G29: 370 | H29: 17.27602 | I29: 17276.02 | J29: 0.0472541507 | K29: 1.148401826 | L29: 46.69194595
A30: 44075 | B30: 4 estrellas | C30: 973 | D30: 556 | E30: 104 | F30: 862 | G30: 885 | H30: 38.762063 | I30: 38762.063 | J30: 0.05305755396 | K30: 1.128770302 | L30: 43.79894124
A31: 44075 | B31: 5 estrellas | C31: 1508 | D31: 259 | E31: 86 | F31: 1075 | G31: 1289 | H31: 119.54669 | I31: 119546.69 | J31: 0.1658944659 | K31: 1.402790698 | L31: 92.74374709
A32: 44105 | B32: 3 estrellas | C32: 1970 | D32: 476 | E32: 77 | F32: 1789 | G32: 1723 | H32: 79.06379 | I32: 79063.79 | J32: 0.1167660613 | K32: 1.10117384 | L32: 45.88728381
A33: 44105 | B33: 4 estrellas | C33: 2066 | D33: 513 | E33: 63 | F33: 2066 | G33: 1942 | H33: 120.63245 | I33: 120632.45 | J33: 0.1221153242 | K33: 1 | L33: 62.11763646
A34: 44105 | B34: 5 estrellas | C34: 885 | D34: 142 | E34: 29 | F34: 521 | G34: 885 | H34: 90.67401 | I34: 90674.01 | J34: 0.2010449796 | K34: 1.69865643 | L34: 102.4565085
A35: 44136 | B35: 4 estrellas | C35: 1633 | D35: 630 | E35: 146 | F35: 1539 | G35: 1342 | H35: 99.42785 | I35: 99427.85 | J35: 0.07100529101 | K35: 1.061078622 | L35: 74.089307
A36: 44136 | B36: 5 estrellas | C36: 2433 | D36: 358 | E36: 141 | F36: 2144 | G36: 2433 | H36: 240.10039 | I36: 240100.39 | J36: 0.2265363128 | K36: 1.134794776 | L36: 98.68491163
A37: 44136 | B37: 3 estrellas | C37: 716 | D37: 169 | E37: 52 | F37: 570 | G37: 580 | H37: 18.89662 | I37: 18896.62 | J37: 0.1143984221 | K37: 1.256140351 | L37: 32.58037931
A38: 44166 | B38: 3 estrellas | C38: 2129 | D38: 405 | E38: 75 | F38: 1796 | G38: 1909 | H38: 89.26585 | I38: 89265.85 | J38: 0.1520509757 | K38: 1.185412027 | L38: 46.76052907
A39: 44166 | B39: 4 estrellas | C39: 924 | D39: 288 | E39: 45 | F39: 911 | G39: 704 | H39: 46.68496 | I39: 46684.96 | J39: 0.07885304659 | K39: 1.014270033 | L39: 66.31386364
A40: 44166 | B40: 5 estrellas | C40: 4127 | D40: 399 | E40: 192 | F40: 3742 | G40: 3287 | H40: 263.60107 | I40: 263601.07 | J40: 0.2657450077 | K40: 1.102886157 | L40: 80.19503194
A41: 44197 | B41: 3 estrellas | C41: 538 | D41: 309 | E41: 69 | F41: 444 | G41: 410 | H41: 26.3702 | I41: 26370.2 | J41: 0.04280196263 | K41: 1.211711712 | L41: 64.31756098
A42: 44197 | B42: 4 estrellas | C42: 1488 | D42: 417 | E42: 90 | F42: 1337 | G42: 1243 | H42: 84.341 | I42: 84341 | J42: 0.0961553338 | K42: 1.112939417 | L42: 67.85277554
A43: 44197 | B43: 5 estrellas | C43: 2269 | D43: 279 | E43: 117 | F43: 1995 | G43: 1831 | H43: 190.758 | I43: 190758 | J43: 0.2117007747 | K43: 1.137343358 | L43: 104.182414
A44: 44228 | B44: 4 estrellas | C44: 4558 | D44: 630 | E44: 180 | F44: 3923 | G44: 2974 | H44: 203.96094 | I44: 203960.94 | J44: 0.1685941043 | K44: 1.161865919 | L44: 68.58135171
A45: 44228 | B45: 3 estrellas | C45: 619 | D45: 249 | E45: 59 | F45: 482 | G45: 507 | H45: 24.73543 | I45: 24735.43 | J45: 0.07271944923 | K45: 1.284232365 | L45: 48.78783037
A46: 44228 | B46: 5 estrellas | C46: 1317 | D46: 135 | E46: 119 | F46: 1308 | G46: 959 | H46: 88.128 | I46: 88128 | J46: 0.2537037037 | K46: 1.006880734 | L46: 91.89572471
A47: 44256 | B47: 5 estrellas | C47: 2363 | D47: 241 | E47: 116 | F47: 2358 | G47: 1778 | H47: 236.98724 | I47: 236987.24 | J47: 0.2379868826 | K47: 1.002120441 | L47: 133.2886614
A48: 44256 | B48: 4 estrellas | C48: 4109 | D48: 719 | E48: 195 | F48: 3632 | G48: 3666 | H48: 267.43844 | I48: 267438.44 | J48: 0.1644757504 | K48: 1.131332599 | L48: 72.95102019
A49: 44256 | B49: 3 estrellas | C49: 702 | D49: 316 | E49: 48 | F49: 519 | G49: 503 | H49: 28.08308 | I49: 28083.08 | J49: 0.05134748877 | K49: 1.352601156 | L49: 55.83117296

Sheet PROMEDIOS (hidden)
A1: Fecha | B1: Atributo | C1: 3 estrellas | D1: 4 estrellas | E1: 5 estrellas | F1: Total
A2: 43800 | B2: Empleos | C2: 277 | D2: 537 | E2: 1203 | F2: 2017
A3: 43800 | B3: Estancia media | C3: 1.238633571 | D3: 1.397559667 | E3: 1.729371393 | F3: 1
A4: 43800 | B4: Habitaciones | C4: 790 | D4: 825 | E4: 580 | F4: 2195
A5: 43800 | B5: Habitaciones vendidas | C5: 5474 | D5: 9880 | E5: 8916 | F5: 24270
A6: 43800 | B6: Ingresos | C6: 226909.33 | D6: 773374.67 | E6: 864962.5 | F6: 1865247
A7: 43800 | B7: Ingresos (Miles) | C7: 226.90933 | D7: 773.37467 | E7: 864.9625 | F7: 1865
A8: 43800 | B8: Llegadas | C8: 4069 | D8: 7458 | E8: 6411 | F8: 17938
A9: 43800 | B9: Pernoctaciones | C9: 5040 | D9: 10423 | E9: 11087 | F9: 26550
A10: 43800 | B10: TOH | C10: 0.223519804 | D10: 0.3863147605 | E10: 0.4958843159 | F10: 0
A11: 43800 | B11: Tarifa promedio | C11: 41.45219766 | D11: 78.27678846 | E11: 97.01239345 | F11: 77
A12: 43831 | B12: Empleos | C12: 165 | D12: 443 | E12: 1128 | F12: 1736
A13: 43831 | B13: Estancia media | C13: 2.559177533 | D13: 1.208227041 | E13: 3.202993255 | F13: 2
A14: 43831 | B14: Habitaciones | C14: 1039 | D14: 1275 | E14: 779 | F14: 3093
A15: 43831 | B15: Habitaciones vendidas | C15: 2582 | D15: 5740 | E15: 15281 | F15: 23603
A16: 43831 | B16: Ingresos | C16: 134780.24 | D16: 438663.95 | E16: 1701399.31 | F16: 2274844
A17: 43831 | B17: Ingresos (Miles) | C17: 134.78024 | D17: 438.66395 | E17: 1701.39931 | F17: 2275
A18: 43831 | B18: Llegadas | C18: 1994 | D18: 6272 | E18: 4744 | F18: 13010
A19: 43831 | B19: Pernoctaciones | C19: 5103 | D19: 7578 | E19: 15195 | F19: 27876
A20: 43831 | B20: TOH | C20: 0.08016392934 | D20: 0.1452245414 | E20: 0.6327798253 | F20: 0
A21: 43831 | B21: Tarifa promedio | C21: 52.19993803 | D21: 76.42229094 | E21: 111.3408357 | F21: 96
A22: 43862 | B22: Empleos | C22: 26 | D22: 234 | E22: 13 | F22: 273
A23: 43862 | B23: Estancia media | C23: 1.682926829 | D23: 1.041556728 | E23: 1.070588235 | F23: 1
A24: 43862 | B24: Habitaciones | C24: 466 | D24: 1332 | E24: 210 | F24: 2008
A25: 43862 | B25: Habitaciones vendidas | C25: 257 | D25: 6613 | E25: 88 | F25: 6958
A26: 43862 | B26: Ingresos | C26: 36476 | D26: 544678.18 | E26: 10608.36 | F26: 591763
A27: 43862 | B27: Ingresos (Miles) | C27: 36.476 | D27: 544.67818 | E27: 10.60836 | F27: 592
A28: 43862 | B28: Llegadas | C28: 205 | D28: 7580 | E28: 85 | F28: 7870
A29: 43862 | B29: Pernoctaciones | C29: 345 | D29: 7895 | E29: 91 | F29: 8331
A30: 43862 | B30: TOH | C30: 0.01901731538 | D30: 0.1711970591 | E30: 0.0144499179 | F30: 0
A31: 43862 | B31: Tarifa promedio | C31: 141.9299611 | D31: 82.36476334 | E31: 120.5495455 | F31: 85
A32: 43891 | B32: Empleos | C32: 102 | D32: 166 | E32: 27 | F32: 295
A33: 43891 | B33: Estancia media | C33: 1.418571429 | D33: 1.13125 | E33: 1.139130435 | F33: 1
A34: 43891 | B34: Habitaciones | C34: 2441 | D34: 6919 | E34: 997 | F34: 10357
A35: 43891 | B35: Habitaciones vendidas | C35: 620 | D35: 3084 | E35: 108 | F35: 3812
A36: 43891 | B36: Ingresos | C36: 65583.34 | D36: 252497.63 | E36: 9231.92 | F36: 327313
A37: 43891 | B37: Ingresos (Miles) | C37: 65.58334 | D37: 252.49763 | E37: 9.23192 | F37: 327
A38: 43891 | B38: Llegadas | C38: 700 | D38: 3840 | E38: 115 | F38: 4655
A39: 43891 | B39: Pernoctaciones | C39: 993 | D39: 4344 | E39: 131 | F39: 5468
A40: 43891 | B40: TOH | C40: 0.008193363376 | D40: 0.01437835973 | E40: 0.00349435403 | F40: 0
A41: 43891 | B41: Tarifa promedio | C41: 105.7795806 | D41: 81.87342088 | E41: 85.48074074 | F41: 86
A42: 43922 | B42: Empleos | C42: 68 | D42: 199 | E42: 47 | F42: 314
A43: 43922 | B43: Estancia media | C43: 1.366666667 | D43: 1.666666667 | E43: 1 | F43: 1
A44: 43922 | B44: Habitaciones | C44: 1490 | D44: 6128 | E44: 311 | F44: 7929
A45: 43922 | B45: Habitaciones vendidas | C45: 403 | D45: 214 | F45: 617
A46: 43922 | B46: Ingresos | C46: 15960 | D46: 16258 | E46: 0 | F46: 32218
A47: 43922 | B47: Ingresos (Miles) | C47: 15.96 | D47: 16.258 | F47: 32
A48: 43922 | B48: Llegadas | C48: 300 | D48: 18 | E48: 84 | F48: 402
A49: 43922 | B49: Pernoctaciones | C49: 410 | D49: 30 | E49: 84 | F49: 524
A50: 43922 | B50: TOH | C50: 0.009015659955 | D50: 0.001164055701 | F50: 0
A51: 43922 | B51: Tarifa promedio | C51: 39.60297767 | D51: 75.97196262 | F51: 52
A52: 43952 | B52: Empleos | C52: 202 | D52: 403 | E52: 141 | F52: 746
A53: 43952 | B53: Estancia media | C53: 6.191489362 | D53: 1.003016591 | E53: 12.67622951 | F53: 3
A54: 43952 | B54: Habitaciones | C54: 344 | D54: 348 | E54: 507 | F54: 1199
A55: 43952 | B55: Habitaciones vendidas | C55: 1156 | D55: 1228 | E55: 1291 | F55: 3675
A56: 43952 | B56: Ingresos | C56: 54638.76 | D56: 56529 | E56: 90180 | F56: 201348
A57: 43952 | B57: Ingresos (Miles) | C57: 54.63876 | D57: 56.529 | E57: 90.18 | F57: 201
A58: 43952 | B58: Llegadas | C58: 188 | D58: 1326 | E58: 244 | F58: 1758
A59: 43952 | B59: Pernoctaciones | C59: 1164 | D59: 1330 | E59: 3093 | F59: 5587
A60: 43952 | B60: TOH | C60: 0.1084021005 | D60: 0.1138301817 | E60: 0.08214035757 | F60: 0
A61: 43952 | B61: Tarifa promedio | C61: 47.26536332 | D61: 46.03338762 | E61: 69.85282727 | F61: 55
A62: 43983 | B62: Empleos | C62: 76 | D62: 220 | E62: 50 | F62: 346
A63: 43983 | B63: Estancia media | C63: 2.066666667 | D63: 1.060737527 | E63: 3.946078431 | F63: 2
A64: 43983 | B64: Habitaciones | C64: 171 | D64: 595 | E64: 266 | F64: 1032
A65: 43983 | B65: Habitaciones vendidas | C65: 282 | D65: 460 | E65: 805 | F65: 1547
A66: 43983 | B66: Ingresos | C66: 14595.35 | D66: 25900.9 | E66: 45758 | F66: 86254
A67: 43983 | B67: Ingresos (Miles) | C67: 14.59535 | D67: 25.9009 | E67: 45.758 | F67: 86
A68: 43983 | B68: Llegadas | C68: 120 | D68: 461 | E68: 204 | F68: 785
A69: 43983 | B69: Pernoctaciones | C69: 248 | D69: 489 | E69: 805 | F69: 1542
A70: 43983 | B70: TOH | C70: 0.05497076023 | D70: 0.02577030812 | E70: 0.100877193 | F70: 0
A71: 43983 | B71: Tarifa promedio | C71: 51.75656028 | D71: 56.30630435 | E71: 56.84223602 | F71: 56
A72: 44013 | B72: Empleos | C72: 99 | D72: 78 | E72: 21 | F72: 198
A73: 44013 | B73: Estancia media | C73: 1.482608696 | D73: 1 | E73: 1.008196721 | F73: 1
A74: 44013 | B74: Habitaciones | C74: 376 | D74: 299 | E74: 101 | F74: 776
A75: 44013 | B75: Habitaciones vendidas | C75: 212 | D75: 70 | E75: 125 | F75: 407
A76: 44013 | B76: Ingresos | C76: 13292.02 | D76: 4291 | E76: 10194.04 | F76: 27777
A77: 44013 | B77: Ingresos (Miles) | C77: 13.29202 | D77: 4.291 | E77: 10.19404 | F77: 28
A78: 44013 | B78: Llegadas | C78: 230 | D78: 86 | E78: 122 | F78: 438
A79: 44013 | B79: Pernoctaciones | C79: 341 | D79: 86 | E79: 123 | F79: 550
A80: 44013 | B80: TOH | C80: 0.01818805765 | D80: 0.007552055238 | E80: 0.03992334717 | F80: 0
A81: 44013 | B81: Tarifa promedio | C81: 62.69820755 | D81: 61.3 | E81: 81.55232 | F81: 68
A82: 44044 | B82: Empleos | C82: 79 | D82: 35 | E82: 89 | F82: 203
A83: 44044 | B83: Estancia media | C83: 1.357142857 | D83: 1 | E83: 1 | F83: 1
A84: 44044 | B84: Habitaciones | C84: 305 | D84: 214 | E84: 222 | F84: 741
A85: 44044 | B85: Habitaciones vendidas | C85: 440 | D85: 26 | E85: 1214 | F85: 1680
A86: 44044 | B86: Ingresos | C86: 22318.96 | D86: 1274 | E86: 127031.89 | F86: 150625
A87: 44044 | B87: Ingresos (Miles) | C87: 22.31896 | D87: 1.274 | E87: 127.03189 | F87: 151
A88: 44044 | B88: Llegadas | C88: 406 | D88: 26 | E88: 1405 | F88: 1837
A89: 44044 | B89: Pernoctaciones | C89: 551 | D89: 26 | E89: 1405 | F89: 1982
A90: 44044 | B90: TOH | C90: 0.04653622422 | D90: 0.0039192041 | E90: 0.1764022087 | F90: 0
A91: 44044 | B91: Tarifa promedio | C91: 50.72490909 | D91: 49 | E91: 104.6391186 | F91: 90
A92: 44075 | B92: Empleos | C92: 61 | D92: 104 | E92: 86 | F92: 251
A93: 44075 | B93: Estancia media | C93: 1.148401826 | D93: 1.128770302 | E93: 1.402790698 | F93: 1
A94: 44075 | B94: Habitaciones | C94: 261 | D94: 556 | E94: 259 | F94: 1076
A95: 44075 | B95: Habitaciones vendidas | C95: 370 | D95: 885 | E95: 1289 | F95: 2544
A96: 44075 | B96: Ingresos | C96: 17276.02 | D96: 38762.063 | E96: 119546.69 | F96: 175585
A97: 44075 | B97: Ingresos (Miles) | C97: 17.27602 | D97: 38.762063 | E97: 119.54669 | F97: 176
A98: 44075 | B98: Llegadas | C98: 438 | D98: 862 | E98: 1075 | F98: 2375
A99: 44075 | B99: Pernoctaciones | C99: 503 | D99: 973 | E99: 1508 | F99: 2984
A100: 44075 | B100: TOH | C100: 0.0472541507 | D100: 0.05305755396 | E100: 0.1658944659 | F100: 0
A101: 44075 | B101: Tarifa promedio | C101: 46.69194595 | D101: 43.79894124 | E101: 92.74374709 | F101: 69
A102: 44105 | B102: Empleos | C102: 77 | D102: 63 | E102: 29 | F102: 169
A103: 44105 | B103: Estancia media | C103: 1.10117384 | D103: 1 | E103: 1.69865643 | F103: 1
A104: 44105 | B104: Habitaciones | C104: 476 | D104: 513 | E104: 142 | F104: 1131
A105: 44105 | B105: Habitaciones vendidas | C105: 1723 | D105: 1942 | E105: 885 | F105: 4550
A106: 44105 | B106: Ingresos | C106: 79063.79 | D106: 120632.45 | E106: 90674.01 | F106: 290370
A107: 44105 | B107: Ingresos (Miles) | C107: 79.06379 | D107: 120.63245 | E107: 90.67401 | F107: 290
A108: 44105 | B108: Llegadas | C108: 1789 | D108: 2066 | E108: 521 | F108: 4376
A109: 44105 | B109: Pernoctaciones | C109: 1970 | D109: 2066 | E109: 885 | F109: 4921
A110: 44105 | B110: TOH | C110: 0.1167660613 | D110: 0.1221153242 | E110: 0.2010449796 | F110: 0
A111: 44105 | B111: Tarifa promedio | C111: 45.88728381 | D111: 62.11763646 | E111: 102.4565085 | F111: 64
A112: 44136 | B112: Empleos | C112: 52 | D112: 146 | E112: 141 | F112: 339
A113: 44136 | B113: Estancia media | C113: 1.256140351 | D113: 1.061078622 | E113: 1.134794776 | F113: 1
A114: 44136 | B114: Habitaciones | C114: 169 | D114: 630 | E114: 358 | F114: 1157
A115: 44136 | B115: Habitaciones vendidas | C115: 580 | D115: 1342 | E115: 2433 | F115: 4355
A116: 44136 | B116: Ingresos | C116: 18896.62 | D116: 99427.85 | E116: 240100.39 | F116: 358425
A117: 44136 | B117: Ingresos (Miles) | C117: 18.89662 | D117: 99.42785 | E117: 240.10039 | F117: 358
A118: 44136 | B118: Llegadas | C118: 570 | D118: 1539 | E118: 2144 | F118: 4253
A119: 44136 | B119: Pernoctaciones | C119: 716 | D119: 1633 | E119: 2433 | F119: 4782
A120: 44136 | B120: TOH | C120: 0.1143984221 | D120: 0.07100529101 | E120: 0.2265363128 | F120: 0
A121: 44136 | B121: Tarifa promedio | C121: 32.58037931 | D121: 74.089307 | E121: 98.68491163 | F121: 82
A122: 44166 | B122: Empleos | C122: 75 | D122: 45 | E122: 192 | F122: 312
A123: 44166 | B123: Estancia media | C123: 1.185412027 | D123: 1.014270033 | E123: 1.102886157 | F123: 1
A124: 44166 | B124: Habitaciones | C124: 405 | D124: 288 | E124: 399 | F124: 1092
A125: 44166 | B125: Habitaciones vendidas | C125: 1909 | D125: 704 | E125: 3287 | F125: 5900
A126: 44166 | B126: Ingresos | C126: 89265.85 | D126: 46684.96 | E126: 263601.07 | F126: 399552
A127: 44166 | B127: Ingresos (Miles) | C127: 89.26585 | D127: 46.68496 | E127: 263.60107 | F127: 400
A128: 44166 | B128: Llegadas | C128: 1796 | D128: 911 | E128: 3742 | F128: 6449
A129: 44166 | B129: Pernoctaciones | C129: 2129 | D129: 924 | E129: 4127 | F129: 7180
A130: 44166 | B130: TOH | C130: 0.1520509757 | D130: 0.07885304659 | E130: 0.2657450077 | F130: 0.174
A131: 44166 | B131: Tarifa promedio | C131: 46.76052907 | D131: 66.31386364 | E131: 80.19503194 | F131: 68
A132: 44197 | B132: Empleos | C132: 69 | D132: 90 | E132: 117 | F132: 276
A133: 44197 | B133: Estancia media | C133: 1.211711712 | D133: 1.112939417 | E133: 1.137343358 | F133: 1
A134: 44197 | B134: Habitaciones | C134: 309 | D134: 417 | E134: 279 | F134: 1005
A135: 44197 | B135: Habitaciones vendidas | C135: 410 | D135: 1243 | E135: 1831 | F135: 3484
A136: 44197 | B136: Ingresos | C136: 26370.2 | D136: 84341 | E136: 190758 | F136: 301469
A137: 44197 | B137: Ingresos (Miles) | C137: 26.3702 | D137: 84.341 | E137: 190.758 | F137: 301
A138: 44197 | B138: Llegadas | C138: 444 | D138: 1337 | E138: 1995 | F138: 3776
A139: 44197 | B139: Pernoctaciones | C139: 538 | D139: 1488 | E139: 2269 | F139: 4295
A140: 44197 | B140: TOH | C140: 0.04280196263 | D140: 0.0961553338 | E140: 0.2117007747 | F140: 0.112 | H140: Formula para actualizar
A141: 44197 | B141: Tarifa promedio | C141: 64.31756098 | D141: 67.85277554 | E141: 104.182414 | F141: 87 | H141: "F152=+SI([@Atributo]="Estancia media";F147/F146;SI([@Atributo]="TOH";(F136/F135)/DIA(FIN.MES([@Fecha];0));SI([@Atributo]="Tarifa promedio";F136/F135;[@[3 estrellas]]+[@[4 estrellas]]+[@[5 estrellas]])))
A142: 44228 | B142: Empleos | C142: 59 | D142: 180 | E142: 119 | F142: 358
A143: 44228 | B143: Estancia media | C143: 1.284232365 | D143: 1.161865919 | E143: 1.006880734 | F143: 1
A144: 44228 | B144: Habitaciones | C144: 249 | D144: 630 | E144: 135 | F144: 1014
A145: 44228 | B145: Habitaciones vendidas | C145: 507 | D145: 2974 | E145: 959 | F145: 4440
A146: 44228 | B146: Ingresos | C146: 24735.43 | D146: 203960.94 | E146: 88128 | F146: 316824
A147: 44228 | B147: Ingresos (Miles) | C147: 24.73543 | D147: 203.96094 | E147: 88.128 | F147: 317
A148: 44228 | B148: Llegadas | C148: 482 | D148: 3923 | E148: 1308 | F148: 5713
A149: 44228 | B149: Pernoctaciones | C149: 619 | D149: 4558 | E149: 1317 | F149: 6494
A150: 44228 | B150: TOH | C150: 0.07271944923 | D150: 0.1685941043 | E150: 0.2537037037 | F150: 0.16
A151: 44228 | B151: Tarifa promedio | C151: 48.78783037 | D151: 68.58135171 | E151: 91.89572471 | F151: 71
A152: 44256 | B152: Empleos | C152: 48 | D152: 195 | E152: 116 | F152: =SUM(PROMEDIO[[#This Row],[3 estrellas]:[5 estrellas]]) -> 359
A153: 44256 | B153: Estancia media | C153: 1.352601156 | D153: 1.131332599 | E153: 1.002120441 | F153: 1
A154: 44256 | B154: Habitaciones | C154: 316 | D154: 719 | E154: 241 | F154: =SUM(PROMEDIO[[#This Row],[3 estrellas]:[5 estrellas]]) -> 1276
A155: 44256 | B155: Habitaciones vendidas | C155: 503 | D155: 3666 | E155: 1778 | F155: =SUM(PROMEDIO[[#This Row],[3 estrellas]:[5 estrellas]]) -> 5947
A156: 44256 | B156: Ingresos | C156: 28083.08 | D156: 267438.44 | E156: 236987.24 | F156: =SUM(PROMEDIO[[#This Row],[3 estrellas]:[5 estrellas]]) -> 532508.76
A157: 44256 | B157: Ingresos (Miles) | C157: 28.08308 | D157: 267.43844 | E157: 236.98724 | F157: =SUM(PROMEDIO[[#This Row],[3 estrellas]:[5 estrellas]]) -> 532.50876
A158: 44256 | B158: Llegadas | C158: 519 | D158: 3632 | E158: 2358 | F158: =SUM(PROMEDIO[[#This Row],[3 estrellas]:[5 estrellas]]) -> 6509
A159: 44256 | B159: Pernoctaciones | C159: 702 | D159: 4109 | E159: 2363 | F159: =SUM(PROMEDIO[[#This Row],[3 estrellas]:[5 estrellas]]) -> 7174
A160: 44256 | B160: TOH | C160: 0.05134748877 | D160: 0.1644757504 | E160: 0.2379868826 | F160: 0.15
A161: 44256 | B161: Tarifa promedio | C161: 55.83117296 | D161: 72.95102019 | E161: 133.2886614 | F161: 411

Sheet AUXILIARES (hidden)
B2: EMPLEO
B4: EMPLEO_MES | E4: EMPLEO_CAT | H4: EMPLEO_TIPO | K4: EMPLEO_SECTOR | P4: EMPLEO_PROM
B5: FECHA | C5: EMPLEOS | E5: CATEGORIA | F5: EMPLEOS | H5: TIPO | I5: EMPLEOS | K5: EMPLEOS | L5: Etiquetas de columna | P5: Categoría | Q5: Promedio de Total
B6: 2019 | E6: 3 estrellas | F6: 48 | H6: Hacienda Turística | I6: 1 | K6: SECTOR | L6: 3 estrellas | M6: 4 estrellas | N6: 5 estrellas | P6: Empleos | Q6: 512
B7: dic | C7: 2017 | E7: 4 estrellas | F7: 195 | H7: Hostal | I7: 5 | K7: Eugenio Espejo | L7: 15 | M7: 102 | N7: 109
B8: 2020 | E8: 5 estrellas | F8: 116 | H8: Hostería | I8: 20 | K8: La Delicia | L8: 3 | M8: 15 | N8: 0
B9: ene | C9: 1736 | H9: Hotel | I9: 311 | K9: La Mariscal | L9: 23 | M9: 63
B10: feb | C10: 273 | H10: Lodge | I10: 22 | K10: Los Chillos | M10: 15
B11: mar | C11: 295 | K11: Manuela Sáenz | L11: 6 | M11: 0
B12: abr | C12: 314 | K12: Tumbaco | L12: 1 | N12: 7
B13: may | C13: 746
B14: jun | C14: 346
B15: jul | C15: 198
B16: ago | C16: 203
B17: sep | C17: 251
B18: oct | C18: 169
B19: nov | C19: 339
B20: dic | C20: 312
B21: 2021
B22: ene | C22: 276
B23: feb | C23: 358
B24: mar | C24: 359
B26: HABITACIONES VENDIDAS
B28: HABITACIONES_MES | E28: HABITACIONES_CAT | H28: HABITACIONES_TIPO | K28: HABITACIONES_SECTOR | P28: HABITACIONES_PROM
B29: FECHA | C29: HABITACIONES VENDIDAS | E29: Categoria | F29: HABITACIONES VENDIDAS | H29: TIPO | I29: HABITACIONES VENDIDAS | K29: HABITACIONES VENDIDAS | L29: Etiquetas de columna | P29: Categoría | Q29: Promedio de Total
B30: 2019 | E30: 3 estrellas | F30: 503 | H30: Hostal | I30: 38 | K30: SECTOR | L30: 3 estrellas | M30: 4 estrellas | N30: 5 estrellas | P30: Habitaciones vendidas | Q30: 6111.8125
B31: dic | C31: 24270 | E31: 4 estrellas | F31: 3666 | H31: Hostería | I31: 40 | K31: Eugenio Espejo | L31: 220 | M31: 2240 | N31: 1544
B32: 2020 | E32: 5 estrellas | F32: 1778 | H32: Hotel | I32: 5619 | K32: La Delicia | L32: 6 | M32: 16 | N32: 206
B33: ene | C33: 23603 | H33: Lodge | I33: 250 | K33: La Mariscal | L33: 264 | M33: 1192
B34: feb | C34: 6958 | K34: Los Chillos | M34: 33
B35: mar | C35: 3812 | K35: Manuela Sáenz | L35: 13 | M35: 185
B36: abr | C36: 617 | K36: Tumbaco | N36: 28
B37: may | C37: 3675
B38: jun | C38: 1547
B39: jul | C39: 407
B40: ago | C40: 1680
B41: sep | C41: 2544
B42: oct | C42: 4550
B43: nov | C43: 4355
B44: dic | C44: 5900
B45: 2021
B46: ene | C46: 3484
B47: feb | C47: 4440
B48: mar | C48: 5947
B50: TOH
B52: TOH_MES | E52: TOH_CAT | H52: TOH_TIPO | K52: TOH_SECTOR | P52: TOH_PROM
B53: FECHA | C53: TOH | E53: CATEGORIA | F53: TOH | H53: TIPO | I53: TOH | K53: TOH | L53: Etiquetas de columna | P53: Categoría | Q53: Promedio de Total
B54: 2019 | E54: 3 estrellas | F54: 0.05134748877 | H54: Hostal | I54: 0.02312842362 | K54: SECTOR | L54: 3 estrellas | M54: 4 estrellas | N54: 5 estrellas | P54: TOH | Q54: 0.03725
B55: dic | C55: 0.3566757293 | E55: 4 estrellas | F55: 0.1644757504 | H55: Hostería | I55: 0.03487358326 | K55: Eugenio Espejo | L55: 0.06695069994 | M55: 0.1906545238 | N55: 0.2371735791
B56: 2020 | E56: 5 estrellas | F56: 0.2379868826 | H56: Hotel | I56: 0.1634427994 | K56: La Delicia | L56: 0.006674082314 | M56: 0.03036053131 | N56: 0.2768817204
B57: ene | C57: 0.2461645964 | H57: Lodge | I57: 0.1414827391 | K57: La Mariscal | L57: 0.07885304659 | M57: 0.1363532372
B58: feb | C58: 0.119487567 | K58: Los Chillos | M58: 0.1064516129
B59: mar | C59: 0.01187291126 | K59: Manuela Sáenz | L59: 0.007912355447 | M59: 0.1925078044
B60: abr | C60: 0.002593853786 | K60: Tumbaco | N60: 0.1290322581
B61: may | C61: 0.09887271651
B62: jun | C62: 0.04996770026
B63: jul | C63: 0.016918856
B64: ago | C64: 0.07313569283
B65: sep | C65: 0.07881040892
B66: oct | C66: 0.1297738228
B67: nov | C67: 0.1254681648
B68: dic | C68: 0.1742880775
B69: 2021
B70: ene | C70: 0.111827957
B71: feb | C71: 0.1563820795
B72: mar | C72: 0.1503438164
B74: ESTANCIA MEDIA
B76: ESTANCIAMEDIA_MES | E76: ESTANCIAMEDIA_CAT | H76: ESTANCIAMEDIA_TIPO | K76: ESTANCIAMEDIA_SECTOR | P76: ESTANCIAMEDIA_PROM
B77: FECHA | C77: ESTANCIA MEDIA | E77: CATEGORÍA | F77: ESTANCIA MEDIA | H77: TIPO | I77: ESTANCIA MEDIA | K77: ESTANCIA MEDIA | L77: Etiquetas de columna | P77: Categoría | Q77: Promedio de Total
B78: 2019 | E78: 3 estrellas | F78: 1.352601156 | H78: Hacienda Turística | K78: SECTOR | L78: 3 estrellas | M78: 4 estrellas | N78: 5 estrellas | P78: Estancia media | Q78: 1.25
B79: dic | C79: 1.480098116 | E79: 4 estrellas | F79: 1.131332599 | H79: Hostal | I79: 1 | K79: Eugenio Espejo | L79: 1.092592593 | M79: 1.104087452 | N79: 1
B80: 2020 | E80: 5 estrellas | F80: 1.002120441 | H80: Hostería | I80: 1 | K80: La Delicia | L80: 1 | M80: 1 | N80: 1
B81: ene | C81: 2.142659493 | H81: Hotel | I81: 1.112801231 | K81: La Mariscal | L81: 1.575539568 | M81: 1.24665392
B82: feb | C82: 1.058576874 | H82: Lodge | I82: 1.009276438 | K82: Los Chillos | M82: 1
B83: mar | C83: 1.174650913 | K83: Manuela Sáenz | L83: 1.3 | M83: 1
B84: abr | C84: 1.303482587 | K84: Tumbaco | N84: 1.075757576
B85: may | C85: 3.178043231
B86: jun | C86: 1.96433121
B87: jul | C87: 1.255707763
B88: ago | C88: 1.078933043
B89: sep | C89: 1.256421053
B90: oct | C90: 1.124542962
B91: nov | C91: 1.124382789
B92: dic | C92: 1.113350907
B93: 2021
B94: ene | C94: 1.137447034
B95: feb | C95: 1.136705759
B96: mar | C96: 1.102166231
B98: LLEGADAS
B100: LLEGADAS_MES | E100: LLEGADAS_CAT | H100: LLEGADAS_TIPO | K100: LLEGADAS_SECTOR | P100: LLEGADAS_PROM
B101: Fecha | C101: LLEGADAS | E101: CATEGORIA | F101: LLEGADAS | H101: TIPO | I101: LLEGADAS | K101: LLEGADAS | L101: Etiquetas de columna | P101: Categoría | Q101: Promedio de Total
B102: 2019 | E102: 3 estrellas | F102: 519 | H102: Hacienda Turística | I102: 0 | K102: SECTOR | L102: 3 estrellas | M102: 4 estrellas | N102: 5 estrellas | P102: Llegadas | Q102: 5134
B103: dic | C103: 17938 | E103: 4 estrellas | F103: 3632 | H103: Hostal | I103: 38 | K103: Eugenio Espejo | L103: 216 | M103: 2104 | N103: 1874
B104: 2020 | E104: 5 estrellas | F104: 2358 | H104: Hostería | I104: 81 | K104: La Delicia | L104: 15 | M104: 55 | N104: 418
B105: ene | C105: 13010 | H105: Hotel | I105: 5851 | K105: La Mariscal | L105: 278 | M105: 1046
B106: feb | C106: 7870 | H106: Lodge | I106: 539 | K106: Los Chillos | M106: 65
B107: mar | C107: 4655 | K107: Manuela Sáenz | L107: 10 | M107: 362
B108: abr | C108: 402 | K108: Tumbaco | L108: 0 | N108: 66
B109: may | C109: 1758
B110: jun | C110: 785
B111: jul | C111: 438
B112: ago | C112: 1837
B113: sep | C113: 2375
B114: oct | C114: 4376
B115: nov | C115: 4253
B116: dic | C116: 6449
B117: 2021
B118: ene | C118: 3776
B119: feb | C119: 5713
B120: mar | C120: 6509
B122: INGRESOS
B124: INGRESOS_MES | E124: INGRESOS_CAT | H124: INGRESOS_TIPO | K124: INGRESOS_SECTOR | P124: INGRESOS_PROM
B125: FECHA | C125: INGRESOS (MILES) | E125: CATEGORIA | F125: INGRESOS (MILES) | H125: TIPO | I125: INGRESOS (MILES) | K125: INGRESOS (MILES) | L125: Etiquetas de columna | P125: Categoría | Q125: Promedio de Total
B126: 2019 | E126: 3 estrellas | F126: 28.08308 | H126: Hacienda Turística | I126: 0 | K126: SECTOR | L126: 3 estrellas | M126: 4 estrellas | N126: 5 estrellas | P126: Ingresos (Miles) | Q126: 615.1875
B127: dic | C127: 1865.2465 | E127: 4 estrellas | F127: 267.43844 | H127: Hostal | I127: 4.181 | K127: Eugenio Espejo | L127: 12.50308 | M127: 127.39916 | N127: 140.504
B128: 2020 | E128: 5 estrellas | F128: 236.98724 | H128: Hostería | I128: 2.57066 | K128: La Delicia | L128: 0.45 | M128: 2 | N128: 93
B129: ene | C129: 2274.8435 | H129: Hotel | I129: 427.27386 | K129: La Mariscal | L129: 12.93 | M129: 76.69862
B130: feb | C130: 591.76254 | H130: Lodge | I130: 98.48324 | K130: Los Chillos | M130: 2.04066
B131: mar | C131: 327.31289 | K131: Manuela Sáenz | L131: 2.2 | M131: 59.3
B132: abr | C132: 32.218 | K132: Tumbaco | L132: 0 | N132: 3.48324
B133: may | C133: 201.34776
B134: jun | C134: 86.25425
B135: jul | C135: 27.77706
B136: ago | C136: 150.62485
B137: sep | C137: 175.584773
B138: oct | C138: 290.37025
B139: nov | C139: 358.42486
B140: dic | C140: 399.55188
B141: 2021
B142: ene | C142: 301.4692
B143: feb | C143: 316.82437
B144: mar | C144: 532.50876
B146: PERNOCTACIONES
B148: PERNOCTACIONES_MES | E148: PERNOCTACIONES_CAT | H148: PERNOCTACIONES_TIPO | K148: PERNOCTACIONES_SECTOR | P148: PERNOCTACIONES_PROM
B149: FECHA | C149: PERNOCTACIONES | E149: CATEGORIA | F149: PERNOCTACIONES | H149: TIPO | I149: PERNOCTACIONES | K149: PERNOCTACIONES | L149: Etiquetas de columna | P149: Categoría | Q149: Promedio de Total
B150: 2019 | C150: 26550 | E150: 3 estrellas | F150: 702 | H150: Hacienda Turística | I150: 0 | K150: SECTOR | L150: 3 estrellas | M150: 4 estrellas | N150: 5 estrellas | P150: Pernoctaciones | Q150: 7265
B151: 2020 | E151: 4 estrellas | F151: 4109 | H151: Hostal | I151: 38 | K151: Eugenio Espejo | L151: 236 | M151: 2323 | N151: 1874
B152: ene | C152: 27876 | E152: 5 estrellas | F152: 2363 | H152: Hostería | I152: 81 | K152: La Delicia | L152: 15 | M152: 55 | N152: 418
B153: feb | C153: 8331 | H153: Hotel | I153: 6511 | K153: La Mariscal | L153: 438 | M153: 1304
B154: mar | C154: 5468 | H154: Lodge | I154: 544 | K154: Los Chillos | M154: 65
B155: abr | C155: 524 | K155: Manuela Sáenz | L155: 13 | M155: 362
B156: may | C156: 5587 | K156: Tumbaco | L156: 0 | N156: 71
B157: jun | C157: 1542
B158: jul | C158: 550
B159: ago | C159: 1982
B160: sep | C160: 2984
B161: oct | C161: 4921
B162: nov | C162: 4782
B163: dic | C163: 7180
B164: 2021 | C164: 17963
B170: TARIFA DE HABITACIÓN OCUPADA
B172: TARIFA_MES | E172: TARIFA_CAT | H172: TARIFA_TIPO | K172: TARIFA_SECTOR | P172: TARIFA_PROM
B173: FECHA | C173: TARFIFA | E173: CATEGORIA | F173: TARFIFA | H173: TIPO | I173: TARIFA | K173: TARIFA | L173: Etiquetas de columna | P173: Categoría | Q173: Promedio de Total
B174: 2019 | E174: 3 estrellas | F174: 55.83117296 | H174: Hostal | I174: 110.0263158 | K174: SECTOR | L174: 3 estrellas | M174: 4 estrellas | N174: 5 estrellas | P174: Tarifa promedio | Q174: 94.8125
B175: dic | C175: 76.8539967 | E175: 4 estrellas | F175: 72.95102019 | H175: Hostería | I175: 64.2665 | K175: Eugenio Espejo | L175: 56.83218182 | M175: 56.874625 | N175: 91
B176: 2020 | E176: 5 estrellas | F176: 133.2886614 | H176: Hotel | I176: 76.04090763 | K176: La Delicia | L176: 75 | M176: 125 | N176: 451.4563107
B177: ene | C177: 96.37942211 | H177: Lodge | I177: 393.93296 | K177: La Mariscal | L177: 48.97727273 | M177: 64.34447987
B178: feb | C178: 85.04779247 | K178: Los Chillos | M178: 61.83818182
B179: mar | C179: 85.86382214 | K179: Manuela Sáenz | L179: 169.2307692 | M179: 320.5405405
B180: abr | C180: 52.2171799 | K180: Tumbaco | N180: 124.4014286
B181: may | C181: 54.78850612
B182: jun | C182: 55.75581771
B183: jul | C183: 68.24830467
B184: ago | C184: 89.65764881
B185: sep | C185: 69.01917178
B186: oct | C186: 63.81763736
B187: nov | C187: 82.30191963
B188: dic | C188: 67.72065763
B189: 2021
B190: ene | C190: 86.52962113
B191: feb | C191: 71.35684009
B192: mar | C192: 89.54241803
B194: PROMEDIOS
B196: Atributo | C196: Empleos
B197: PROMEDIO_MES | E197: PROMEDIO | K197: PROMEDIO_CAT
B198: Etiquetas de fila | C198: Suma de Total | E198: Etiquetas de fila | F198: Promedio de Total | K198: Etiquetas de fila | L198: 3 estrellas | M198: 4 estrellas | N198: 5 estrellas
B199: 2019 | E199: Empleos | F199: 512 | K199: 2019
B200: dic | C200: 2017 | K200: dic | L200: 277 | M200: 537 | N200: 1203
B201: 2020 | K201: 2020
B202: ene | C202: 1736 | K202: ene | L202: 165 | M202: 443 | N202: 1128
B203: feb | C203: 273 | K203: feb | L203: 26 | M203: 234 | N203: 13
B204: mar | C204: 295 | K204: mar | L204: 102 | M204: 166 | N204: 27
B205: abr | C205: 314 | K205: abr | L205: 68 | M205: 199 | N205: 47
B206: may | C206: 746 | K206: may | L206: 202 | M206: 403 | N206: 141
B207: jun | C207: 346 | K207: jun | L207: 76 | M207: 220 | N207: 50
B208: jul | C208: 198 | K208: jul | L208: 99 | M208: 78 | N208: 21
B209: ago | C209: 203 | K209: ago | L209: 79 | M209: 35 | N209: 89
B210: sep | C210: 251 | K210: sep | L210: 61 | M210: 104 | N210: 86
B211: oct | C211: 169 | K211: oct | L211: 77 | M211: 63 | N211: 29
B212: nov | C212: 339 | K212: nov | L212: 52 | M212: 146 | N212: 141
B213: dic | C213: 312 | K213: dic | L213: 75 | M213: 45 | N213: 192
B214: 2021 | K214: 2021
B215: ene | C215: 276 | K215: ene | L215: 69 | M215: 90 | N215: 117
B216: feb | C216: 358 | K216: feb | L216: 59 | M216: 180 | N216: 119
B217: mar | C217: 359 | K217: mar | L217: 48 | M217: 195 | N217: 116

Sheet 4X4 MATRIZ TOTALES
D16: Categorías | E16: Pernoctaciones | F16: TOH | G16: Estancia Media | H16: Tarifa por habitación Ocupada
D17: 3 estrellas | E17: 702 | F17: 0.05134748877 | G17: 1.352601156 | H17: 55.83117296
D18: 4 estrellas | E18: 4109 | F18: 0.1644757504 | G18: 1.131332599 | H18: 72.95102019
D19: 5 estrellas | E19: 2363 | F19: 0.2379868826 | G19: 1.002120441 | H19: 133.2886614
D20: Total general | E20: 7174 | F20: 0.1503438164 | G20: 1.102166231 | H20: 89.54241803

Sheet 4X4 MATRIZ PROMEDIOS
D16: Categorías | E16: Pernoctaciones | F16: TOH | G16: Estancia Media | H16: Tarifa por Habitación Ocupada
D17: 3 estrellas | E17: 702 | F17: 0.05134748877 | G17: 1.352601156 | H17: 55.83117296
D18: 4 estrellas | E18: 4109 | F18: 0.1644757504 | G18: 1.131332599 | H18: 72.95102019
D19: 5 estrellas | E19: 2363 | F19: 0.2379868826 | G19: 1.002120441 | H19: 133.2886614
D20: Total general | E20: 7174 | F20: 0.1503438164 | G20: 1.102166231 | H20: 89.54241803

Sheet EMPLEO
AK2: =AUXILIARES!$Q$6 -> 512

Sheet ESTANCIA MEDIA
AK2: =GETPIVOTDATA("Total",AUXILIARES!$P$77,"Atributo","Estancia media") -> 1.25

Sheet HABITACIONES VENDIDAS
AJ2: =GETPIVOTDATA("Total",AUXILIARES!$P$29,"Atributo","Habitaciones vendidas") -> 6111.8125

Sheet INGRESOS
AM2: =+GETPIVOTDATA("Total",AUXILIARES!$P$125,"Atributo","Ingresos (Miles)") -> 615.1875

Sheet LLEGADAS
AL2: =GETPIVOTDATA("Total",AUXILIARES!$P$101,"Atributo","Llegadas") -> 5134
B21: TIPO

Sheet PERNOCTACIONES
AL2: =+GETPIVOTDATA("Total",AUXILIARES!$P$149,"Atributo","Pernoctaciones") -> 7265

Sheet TARIFA
AM2: =GETPIVOTDATA("Total",AUXILIARES!$P$173,"Atributo","Tarifa promedio") -> 94.8125

Sheet TOH
AM2: =GETPIVOTDATA("Total",AUXILIARES!$P$53,"Atributo","TOH")/100 -> 0.0003725
B10: EVOLUCIÓN

Sheet PROMEDIO
W7: =AUXILIARES!$E$199 -> Empleos
Y8: =+IF(NOT(W7="TOH"),IF(W7=("tarifa promedio"),TEXT(AUXILIARES!$F$199,"$##.##0,00"), TEXT(AUXILIARES!$F$199,"##.##0,00")),TEXT((AUXILIARES!$F$199),"0,00%")) -> 512,00
